Workbook

Sheet BBBB
B1: Grup de Remugants | F1: AAAAA
B3: Municipi | D3: Comarca | F3: Província | H3: Nom explotació
B4: B | D4: BB | F4: BBB | H4: BBBB
B5: Control lleter oficial (Sí/No) | H5: Sí
B7: Règim tinença, superfície en ha
B8: Propietat | D8: Arrendament | F8: Total
B9: Secà | C9: Regadiu | D9: Secà | E9: Regadiu | F9: Secà | G9: Regadiu | H9: Total
B10: 50 | C10: 25 | F10: =B10+D10 -> 50 | G10: =C10+E10 -> 25 | H10: =SUM(B10:E10) -> 75
B12: Cultius, superfície dedicada a llet
E13: Superfície a llet | G13: Rendiment kg/ha
E14: Secà | F14: Regadiu | G14: Secà | H14: Regadiu
B15: Farratges i altres cultius per a vaques de llet | E15: =SUM(E16:E24) -> 50 | F15: =SUM(F16:F24) -> 25
B16: Alfals | F16: 10
B17: Raigràs/Blat de moro | F17: 15
B18: Civada | E18: 25
B19: Sorgo | E19: 25
J28: =IF(F28>D28,"Error: superfície regadiu a llet no pot ser superior a la total","") -> 
B29: Superfície a llet | E29: =E15 -> 50 | F29: =F15 -> 25 | G29: =E29+F29 -> 75
E30: =IF(E29>F10,"Revisar supefície secà","") ->  | F30: =IF(F29>G10,"Revisar supefície regadiu","") -> 
B32: Despeses parcel·les cultius per a llet, €
B33: Tipus de despesa | C33: =IF($B16="","",$B16) -> Alfals | D33: =IF($B17="","",$B17) -> Raigràs/Blat de moro | E33: =IF($B18="","",$B18) -> Civada | F33: =IF(B19="","",B19) -> Sorgo | G33: =IF(B20="","",B20) ->  | H33: =IF($B21="","",$B21) ->  | I33: =IF($B22="","",$B22) ->  | J33: =IF($B23="","",$B23) ->  | K33: =IF($B24="","",$B24) ->  | L33: =IF($B25="","",$B26) ->  | M33: =IF($B27="","",$B27) ->  | N33: =IF($B28="","",$B28) ->  | O33: Si només tenim el total de despeses de cada partida | P33: Total
B34: Llavors | O34: 4000 | P34: =IF(O34="",SUM(C34:G34),O34) -> 4000
B35: Adobs | O35: 3200 | P35: =IF(O35="",SUM(C35:G35),O35) -> 3200
B36: Tractaments | O36: 2100 | P36: 2100
B37: Plàstics i conservants | O37: 1321 | P37: 1321
B38: Altres (aigua reg, etc.) | O38: 2000 | P38: 2000
B39: Total | C39: =SUM(C34:C38) -> 0 | D39: =SUM(D34:D38) -> 0 | E39: =SUM(E34:E38) -> 0 | F39: =SUM(F34:F38) -> 0 | G39: =SUM(G34:G38) -> 0 | H39: =SUM(H34:H38) -> 0 | I39: 0 | J39: 0 | K39: 0 | L39: 0 | M39: =SUM(M34:M38) -> 0 | N39: =SUM(N34:N38) -> 0 | O39: =SUM(O34:O38) -> 12621 | P39: 12621
B41: Preu mercat arrendaments de terres a la zona (€/ha)
B42: Tipus | C42: Secà | D42: Regadiu
B43: Arrendada | C43: 121 | D43: 270
B45: Inventari ramat i incidències
B46: Vaques presents | C46: Inventari inici d'any | E46: Compres, altes, vendes, baixes | J46: Inventari final d'any
E47: Durant tot l'any
B48: Nº lactació | C48: Nº vaques | D48: % | E48: Compres | F48: Altes reposició | G48: Vendes (per a vida) | H48: Vendes (a escorxador) | I48: Baixes per mort | J48: Nº vaques | K48: % | L48: Mitjana anual | M48: % | N48: UBM | O48: Capital bestiar | P48: Valor canvi inventari
B49: 1 lactació | C49: 38 | D49: =IF(C52="","",C49/C52) -> 0.3423423423 | E49: 0 | F49: 25 | G49: 0 | H49: 0 | I49: 0 | J49: 43 | K49: =IF(J52="","",J49/J52) -> 0.3553719008 | L49: =(C49+J49)/2 -> 40.5 | M49: =L49/$L$75 ->  | O49: =L49*Preu_Vaca -> 53662.5 | P49: =(J49-C49)*Preu_Vaca -> 6625
B50: 2 lactació | C50: 48 | D50: =IF(C52="","",C50/C52) -> 0.4324324324 | E50: 0 | G50: 0 | H50: 0 | I50: 0 | J50: 49 | K50: =IF(J52="","",J50/J52) -> 0.4049586777 | L50: 48.5 | M50: =L50/$L$75 ->  | O50: =L50*Preu_Vaca*0.9 -> 57836.25 | P50: =(J50-C50)*Preu_Vaca*0.9 -> 1192.5
B51: 3 i més lactació | C51: 25 | D51: =IF(C52="","",C51/C52) -> 0.2252252252 | E51: 0 | G51: 0 | H51: 16 | I51: 5 | J51: 29 | K51: =IF(J52="","",J51/J52) -> 0.2396694215 | L51: 27 | M51: =L51/$L$75 ->  | O51: =L51*Preu_Vaca*0.55 -> 19676.25 | P51: =(J51-C51)*Preu_Vaca*0.55 -> 2915
B52: Totals | C52: =SUM(C49:C51) -> 111 | D52: 1 | E52: 0 | F52: 25 | G52: 0 | H52: 16 | I52: 5 | J52: 121 | K52: 1 | L52: 116 | N52: =L52 -> 116 | O52: =SUM(O49:O51) -> 131175 | P52: =SUM(P49:P51) -> 10732.5
B53: Vaques eixutes | D53: _____________________________________________________________________________________________________________ | I53: Vaques eixutes | L53: 0 | M53: =L53/L52 -> 0 | O53: Capital aproximació vedelles
B54: Vedelles < 1 any | C54: =SUM(C61:C64) -> 42 | D54: _____________________________________________________________________________________________________________ | I54: Vedelles < 1 any | J54: =SUM(J61:J64) -> 37 | L54: 39.5 | O54: =L54*Preu_vedella*0.3625 -> 20869.57812 | P54: =(J54-C54)*Preu_vedella*0.3625 -> -2641.71875
B55: Vedelles > 1 any no prenyades | C55: 10 | D55: _____________________________________________________________________________________________ | H55: Vedelles > 1 any no prenyades | J55: 6 | L55: 8 | O55: =(L55+L56)*Preu_vedella*0.7638 -> 47312.63625 | P55: =(J55-C55+J56-C56)*Preu_vedella*0.7638 -> -7792.6695
B56: Vedelles prenyades | C56: =C71-C54-C55 -> 36 | D56: _____________________________________________________________________________________________________________ | I56: Vedelles prenyades | J56: =J71-J54-J55 -> 33 | L56: 34.5 | O56: =SUM(O54:O55) -> 68182.21438
B57: Total vedelles | C57: =SUM(C54:C56) -> 88 | D57: _____________________________________________________________________________________________________________ | I57: Total vedelles | J57: =SUM(J54:J56) -> 76 | L57: 82
B58: Vedelles de recria | C58: Inventari inici d'any | J58: Inventari final d'any
N59: Capital bestiar | O59: Valor canvi inventari
B60: Edat | C60: Nº vedelles | D60: % | I60: Edat | J60: Nº vedelles | K60: % | L60: Mitjana | M60: UBM
B61: 0 a 3 mesos | C61: 10 | D61: =IF(C71="","",C61/C71) -> 0.1136363636 | E61: _________________________________________________________________________________________________ | I61: 0 a 3 mesos | J61: 10 | K61: =IF(J71="","",J61/J71) -> 0.1315789474 | L61: =(C61+J61)/2 -> 10 | M61: =L61*0.4 -> 4 | N61: =L61*Preu_vedella*0.2 -> 2915 | O61: =(J61-C61)*Preu_vedella*0.2 -> 0
B62: 3 a 6 mesos | C62: 15 | D62: =IF(C71="","",C62/C71) -> 0.1704545455 | E62: _________________________________________________________________________________________________ | I62: 3 a 6 mesos | J62: 12 | K62: =IF(J71="","",J62/J71) -> 0.1578947368 | L62: 13.5 | M62: =L62*0.4 -> 5.4 | N62: =L62*Preu_vedella*0.33 -> 6493.1625 | O62: =(J62-C62)*Preu_vedella*0.33 -> -1442.925
B63: 6 a 9 mesos | C63: 6 | D63: =IF(C71="","",C63/C71) -> 0.06818181818 | E63: _________________________________________________________________________________________________ | I63: 6 a 9 mesos | J63: 9 | K63: =IF(J71="","",J63/J71) -> 0.1184210526 | L63: 7.5 | M63: =L63*0.6 -> 4.5 | N63: =L63*Preu_vedella*0.42 -> 4591.125 | O63: =M63*Preu_vedella*0.42 -> 2754.675
B64: 9 a 12 mesos | C64: 11 | D64: =IF(C71="","",C64/C71) -> 0.125 | E64: _________________________________________________________________________________________________ | I64: 9 a 12 mesos | J64: 6 | K64: =IF(J71="","",J64/J71) -> 0.07894736842 | L64: 8.5 | M64: 5.1 | N64: =L64*Preu_vedella*0.5 -> 6194.375 | O64: =(J64-C64)*Preu_vedella*0.5 -> -3643.75
B65: 12 a 15 mesos | C65: 13 | D65: =IF(C71="","",C65/C71) -> 0.1477272727 | E65: _________________________________________________________________________________________________ | I65: 12 a 15 mesos | J65: 15 | K65: =IF(J71="","",J65/J71) -> 0.1973684211 | L65: 14 | M65: 8.4 | N65: =L65*Preu_vedella*0.67 -> 13671.35 | O65: =(J65-C65)*Preu_vedella*0.67 -> 1953.05
B66: 15 a 18 mesos | C66: 15 | D66: =IF(C71="","",C66/C71) -> 0.1704545455 | E66: _________________________________________________________________________________________________ | I66: 15 a 18 mesos | J66: 12 | K66: =IF(J71="","",J66/J71) -> 0.1578947368 | L66: 13.5 | M66: 8.1 | N66: =L66*Preu_vedella*0.83 -> 16331.2875 | O66: =(J66-C66)*Preu_vedella*0.83 -> -3629.175
B67: 18 a 21 mesos | C67: 6 | D67: =IF(C71="","",C67/C71) -> 0.06818181818 | E67: _________________________________________________________________________________________________ | I67: 18 a 21 mesos | J67: 6 | K67: =IF(J71="","",J67/J71) -> 0.07894736842 | L67: 6 | M67: 3.6 | N67: =L67*Preu_vedella*0.83 -> 7258.35 | O67: =(J67-C67)*Preu_vedella*0.83 -> 0
B68: 21 a 24 mesos | C68: 5 | D68: =IF(C71="","",C68/C71) -> 0.05681818182 | E68: _________________________________________________________________________________________________ | I68: 21 a 24 mesos | J68: 3 | K68: =IF(J71="","",J68/J71) -> 0.03947368421 | L68: 4 | M68: 2.4 | N68: =L68*Preu_vedella -> 5830 | O68: =(J68-C68)*Preu_vedella -> -2915
B69: 24 a 27 mesos | C69: 7 | D69: =IF(C71="","",C69/C71) -> 0.07954545455 | E69: _________________________________________________________________________________________________ | I69: 24 a 27 mesos | J69: 2 | K69: =IF(J71="","",J69/J71) -> 0.02631578947 | L69: 4.5 | M69: =L69 -> 4.5 | N69: =L69*Preu_vedella*0.83 -> 5443.7625 | O69: =(J69-C69)*Preu_vedella*0.83 -> -6048.625
B70: >27 mesos | C70: 0 | D70: =IF(C71="","",C70/C71) -> 0 | E70: _________________________________________________________________________________________________ | I70: >27 mesos | J70: 1 | K70: =IF(J71="","",J70/J71) -> 0.01315789474 | L70: 0.5 | M70: =L70 -> 0.5 | N70: =L70*Preu_vedella*0.67 -> 488.2625 | O70: =(J70-C70)*Preu_vedella*0.67 -> 976.525
B71: Total vedelles | C71: =SUM(C61:C70) -> 88 | D71: =SUM(D61:D70) -> 1 | E71: _________________________________________________________________________________________________ | I71: Total vedelles | J71: =SUM(J61:J70) -> 76 | K71: =SUM(K61:K70) -> 1 | L71: 82 | M71: =SUM(M61:M70) -> 46.5 | N71: =SUM(N61:N70) -> 69216.675 | O71: =SUM(O61:O70) -> -11995.225
B72: Sementals | C72: Inventari inici d'any | J72: Inventari final d'any
B74: Edat | C74: Nº toros | D74: % | I74: Edat | J74: Nº toros | K74: % | L74: Mitjana | M74: UBM | N74: Capital bestiar | O74: Valor canvi inventari
B75: <2 anys | C75: 0 | D75: =IF(C78=0,0,C75/C78) -> 0 | E75: _________________________________________________________________________________________________ | I75: <2 anys | J75: 0 | K75: =IF($J$101=0,0,J75/$J$101) -> 0 | L75: =(C75+J75)/2 -> 0 | M75: =L75*0.6 -> 0
B76: 2 a 5 anys | C76: 1 | D76: =IF(C78=0,0,C76/C78) -> 1 | E76: _________________________________________________________________________________________________ | I76: 2 a 5 anys | J76: 1 | K76: =IF($J$101=0,0,J76/$J$101) -> 0 | L76: =(C76+J76)/2 -> 1 | M76: =L76*1 -> 1
B77: >5 anys | C77: 0 | D77: =IF(C78=0,0,C77/C78) -> 0 | E77: _________________________________________________________________________________________________ | I77: >5 anys | J77: 0 | K77: =IF($J$101=0,0,J77/$J$101) -> 0 | L77: =(C77+J77)/2 -> 0 | M77: =L77*1 -> 0
B78: Total | C78: =SUM(C75:C77) -> 1 | D78: =SUM(D75:D77) -> 1 | E78: _________________________________________________________________________________________________ | I78: Total | J78: =SUM(J75:J77) -> 1 | K78: =SUM(K75:K77) -> 0 | L78: =(C78+J78)/2 -> 1 | M78: =SUM(M75:M77) -> 1 | N78: =M78*Preu_Vaca -> 1325 | O78: =(J78-C78)*Preu_Vaca -> 0
E79: % reposició | G79: % eliminació | H79: Tendència
B80: Nombre mitjà de vaques | C80: =(J52+C52)/2 -> 116 | E80: =(E52+F52)/C80 -> 0.2155172414 | G80: =(G52+H52+I52)/C80 -> 0.1810344828 | H80: =IF((E80-G80)>0,"Creixement","Decreixement") -> Creixement | I80: =(J52-C52)/C52 -> 0.09009009009
B85: Consum d'ingredients per a l'alimentació
B87: Farratges | C87: Inventari inici d'any | E87: Compres | H87: Vendes | K87: Producció | N87: Inventari final d'any | P87: Consum | S87: Inventari | U87: Preus
E88: Durant tot l'any | H88: Durant tot l'any | K88: Durant l'any
C89: Quantitat, kg | D89: % MS | E89: Compres, quantitat en kg | F89: % MS | G89: Import compres | H89: Vendes, quantitat en kg | I89: % MS | J89: Import vendes | K89: Producció en kg | L89: % MS | M89: Cost de producció | N89: Quantitat, kg | O89: % MS | P89: Consum, kg | Q89: % MS | S89: Variació inventari | T89: % MS | U89: Preu compres | V89: Preu vendes | W89: Preu mitjà
B90: Ensitjat sorgo | C90: 90000 | D90: 0.3 | K90: 500000 | L90: 0.3 | M90: 0.024 | N90: 405000 | O90: 0.3 | P90: =IF(B90="","",IF((C90+E90-H90+K90-N90)<0,"Revisar dades",C90+E90-H90+K90-N90)) -> 185000 | Q90: =IF(P90="","",IF(COUNT(C90,E90,H90,K90,N90)=COUNT(D90,F90,I90,L90,O90),(C90*D90+E90*F90+H90*I90+K90*L90+N90*O90)/(C90+E90+H90+K90+N90),"")) -> 0.3 | R90: =IF(P90="","",IF(Q90="","% MS?","")) ->  | S90: =IF(B90="","",N90-C90) -> 315000 | T90: =IF(S90=0,"",IF(S90="","",(C90*D90+N90*O90)/(C90+N90))) -> 0.3 | U90: =IF(G90="","",G90/E90) ->  | V90: =IF(H90="","",J90/H90) ->  | W90: =IF(B90="","",SUM(Y90:AA90)) -> 0
B91: Ensitjat Raigràs | C91: 120000 | D91: 0.28 | K91: 500000 | L91: 0.28 | M91: 0.03 | N91: 120000 | O91: 0.28 | P91: =IF(B91="","",IF((C91+E91-H91+K91-N91)<0,"Revisar dades",C91+E91-H91+K91-N91)) -> 500000 | Q91: =IF(P91="","",IF(COUNT(C91,E91,H91,K91,N91)=COUNT(D91,F91,I91,L91,O91),(C91*D91+E91*F91+H91*I91+K91*L91+N91*O91)/(C91+E91+H91+K91+N91),"")) -> 0.28 | R91: =IF(P91="","",IF(Q91="","% MS?","")) ->  | S91: =IF(B91="","",N91-C91) -> 0 | T91: =IF(S91=0,"",IF(S91="","",(C91*D91+N91*O91)/(C91+N91))) ->  | U91: =IF(G91="","",G91/E91) ->  | V91: =IF(H91="","",J91/H91) ->  | W91: =IF(B91="","",SUM(Y91:AA91)) -> 0
B92: Fenc Raigràs | K92: 80000 | L92: 0.88 | M92: 0.1 | N92: 67800 | O92: 0.88 | P92: 12200 | Q92: 0.88 | S92: 67800 | T92: 0.88 | W92: 0
B93: Alfals fenc | C93: 26400 | D93: 0.88 | K93: 90000 | L93: 0.88 | M93: 0.12 | N93: 71550 | O93: 0.88 | P93: 44850 | Q93: 0.88 | S93: 45150 | T93: 0.88 | W93: 0
B94: Civada de flor | C94: 67500 | D94: 0.88 | K94: 100000 | L94: 0.88 | M94: 0.1 | N94: 97200 | O94: 0.88 | P94: 70300 | Q94: 0.88 | S94: 29700 | T94: 0.88 | W94: 0
P97: =IF(B97="","",IF((C97+E97-H97+K97-N97)<0,"Revisar dades",C97+E97-H97+K97-N97)) ->  | Q97: =IF(P97="","",IF(COUNT(C97,E97,H97,K97,N97)=COUNT(D97,F97,I97,L97,O97),(C97*D97+E97*F97+H97*I97+K97*L97+N97*O97)/(C97+E97+H97+K97+N97),"")) ->  | R97: =IF(P97="","",IF(Q97="","% MS?","")) ->  | S97: =IF(B97="","",N97-C97) ->  | T97: =IF(S97=0,"",IF(S97="","",(C97*D97+N97*O97)/(C97+N97))) ->  | U97: =IF(G97="","",G97/E97) ->  | V97: =IF(H97="","",J97/H97) ->  | W97: =IF(B97="","",SUM(Y97:AA97)) -> 
P98: =IF(B98="","",IF((C98+E98-H98+K98-N98)<0,"Revisar dades",C98+E98-H98+K98-N98)) ->  | Q98: =IF(P98="","",IF(COUNT(C98,E98,H98,K98,N98)=COUNT(D98,F98,I98,L98,O98),(C98*D98+E98*F98+H98*I98+K98*L98+N98*O98)/(C98+E98+H98+K98+N98),"")) ->  | R98: =IF(P98="","",IF(Q98="","% MS?","")) ->  | S98: =IF(B98="","",N98-C98) ->  | T98: =IF(S98=0,"",IF(S98="","",(C98*D98+N98*O98)/(C98+N98))) ->  | U98: =IF(G98="","",G98/E98) ->  | V98: =IF(H98="","",J98/H98) ->  | W98: =IF(B98="","",SUM(Y98:AA98)) -> 
P99: =IF(B99="","",IF((C99+E99-H99+K99-N99)<0,"Revisar dades",C99+E99-H99+K99-N99)) ->  | Q99: =IF(P99="","",IF(COUNT(C99,E99,H99,K99,N99)=COUNT(D99,F99,I99,L99,O99),(C99*D99+E99*F99+H99*I99+K99*L99+N99*O99)/(C99+E99+H99+K99+N99),"")) ->  | R99: =IF(P99="","",IF(Q99="","% MS?","")) ->  | S99: =IF(B99="","",N99-C99) ->  | T99: =IF(S99=0,"",IF(S99="","",(C99*D99+N99*O99)/(C99+N99))) ->  | U99: =IF(G99="","",G99/E99) ->  | V99: =IF(H99="","",J99/H99) ->  | W99: =IF(B99="","",SUM(Y99:AA99)) -> 
P100: =IF(B100="","",IF((C100+E100-H100+K100-N100)<0,"Revisar dades",C100+E100-H100+K100-N100)) ->  | Q100: =IF(P100="","",IF(COUNT(C100,E100,H100,K100,N100)=COUNT(D100,F100,I100,L100,O100),(C100*D100+E100*F100+H100*I100+K100*L100+N100*O100)/(C100+E100+H100+K100+N100),"")) ->  | R100: =IF(P100="","",IF(Q100="","% MS?","")) ->  | S100: =IF(B100="","",N100-C100) ->  | T100: =IF(S100=0,"",IF(S100="","",(C100*D100+N100*O100)/(C100+N100))) ->  | U100: =IF(G100="","",G100/E100) ->  | V100: =IF(H100="","",J100/H100) ->  | W100: =IF(B100="","",SUM(Y100:AA100)) -> 
P101: =IF(B101="","",IF((C101+E101-H101+K101-N101)<0,"Revisar dades",C101+E101-H101+K101-N101)) ->  | Q101: =IF(P101="","",IF(COUNT(C101,E101,H101,K101,N101)=COUNT(D101,F101,I101,L101,O101),(C101*D101+E101*F101+H101*I101+K101*L101+N101*O101)/(C101+E101+H101+K101+N101),"")) ->  | R101: =IF(P101="","",IF(Q101="","% MS?","")) ->  | S101: =IF(B101="","",N101-C101) ->  | T101: =IF(S101=0,"",IF(S101="","",(C101*D101+N101*O101)/(C101+N101))) ->  | U101: =IF(G101="","",G101/E101) ->  | V101: =IF(H101="","",J101/H101) ->  | W101: =IF(B101="","",SUM(Y101:AA101)) -> 
F102: Total compres | G102: =SUM(G90:G101) -> 0 | I102: Total vendes | J102: =SUM(J90:J101) -> 0 | P102: Total valor variació inventari | S102: =SUMPRODUCT(S90:S101,W90:W101) -> 0
C103: Inventari inici d'any | E103: Compres | H103: Vendes | K103: Producció | N103: Inventari final d'any
E104: Durant tot l'any | H104: Durant tot l'any | K104: Durant l'any
B105: Concentrats, subproductes i additius, a vaques | C105: Quantitat, kg | D105: % MS | E105: Compres, quantitat en kg | F105: % MS | G105: Import compres | H105: Vendes, quantitat en kg | I105: % MS | J105: Import vendes | K105: Producció en kg | L105: % MS | M105: Cost de producció | N105: Quantitat, kg | O105: % MS | P105: Consum, kg | Q105: % MS | S105: Variació inventari | T105: % MS | U105: Preu compres | V105: Preu vendes | W105: Preu mitjà
B106: Total | C106: 45 | D106: 0.88 | E106: 524584.6 | F106: 0.88 | G106: 152821.8 | P106: =IF(B106="","",IF((C106+E106-H106+K106-N106)<0,"Revisar dades",C106+E106-H106+K106-N106)) -> 524629.6 | Q106: =IF(P106="","",IF(COUNT(C106,E106,H106,K106,N106)=COUNT(D106,F106,I106,L106,O106),(C106*D106+E106*F106+H106*I106+K106*L106+N106*O106)/(C106+E106+H106+K106+N106),"")) -> 0.88 | R106: =IF(P106="","",IF(Q106="","% MS?","")) ->  | S106: =IF(B106="","",N106-C106) -> -45 | T106: =IF(S106=0,"",IF(S106="","",(C106*D106+N106*O106)/(C106+N106))) -> 0.88 | U106: =IF(G106="","",G106/E106) -> 0.2913196461 | V106: =IF(H106="","",J106/H106) ->  | W106: =IF(B106="","",SUM(Y106:AA106)) -> 0
P107: =IF(B107="","",IF((C107+E107-H107+K107-N107)<0,"Revisar dades",C107+E107-H107+K107-N107)) ->  | Q107: =IF(P107="","",IF(COUNT(C107,E107,H107,K107,N107)=COUNT(D107,F107,I107,L107,O107),(C107*D107+E107*F107+H107*I107+K107*L107+N107*O107)/(C107+E107+H107+K107+N107),"")) ->  | R107: =IF(P107="","",IF(Q107="","% MS?","")) ->  | S107: =IF(B107="","",N107-C107) ->  | U107: =IF(G107="","",G107/E107) ->  | V107: =IF(H107="","",J107/H107) ->  | W107: =IF(B107="","",SUM(Y107:AA107)) -> 
T120: =IF(S120="","",(C120*D120+N120*O120)/(C120+N120)) -> 
F121: Total compres | G121: =SUM(G106:G120) -> 152821.8 | I121: Total vendes | J121: =SUM(J106:J120) -> 0 | P121: =SUMPRODUCT(P106:P120,Q106:Q120) -> 461674.048 | Q121: =IF(P121=0,"",P121/SUM(P106:P120)) -> 0.88 | S121: =SUMPRODUCT(S106:S120,W106:W120) -> 0
C122: Inventari inici d'any | E122: Compres | H122: Vendes | K122: Producció | N122: Inventari final d'any
E123: Durant tot l'any | H123: Durant to l'any | K123: Durant l'any
B124: Concentrats, subproductes i additius, a recria | C124: Quantitat, kg | D124: % MS | E124: Compres, quantitat en kg | F124: % MS | G124: Import compres | H124: Vendes, quantitat en kg | I124: % MS | J124: Import vendes | K124: Producció en kg | L124: % MS | M124: Cost de producció | N124: Quantitat, kg | O124: % MS | P124: Consum, kg (l llet) | Q124: % MS | S124: Variació inventari | T124: % MS | U124: Preu compres | V124: Preu vendes | W124: Preu mitjà
P125: =IF(B125="","",IF((C125+E125-H125+K125-N125)<0,"Revisar dades",C125+E125-H125+K125-N125)) ->  | Q125: =IF(P125="","",IF(COUNT(C125,E125,H125,K125,N125)=COUNT(D125,F125,I125,L125,O125),(C125*D125+E125*F125+H125*I125+K125*L125+N125*O125)/(C125+E125+H125+K125+N125),"")) ->  | R125: =IF(P125="","",IF(Q125="","% MS?","")) ->  | S125: =IF(B125="","",N125-C125) ->  | T125: =IF(S125=0,"",IF(S125="","",(C125*D125+N125*O125)/(C125+N125))) ->  | U125: =IF(G125="","",G125/E125) ->  | V125: =IF(H125="","",J125/H125) ->  | W125: =IF(B125="","",SUM(Y125:AA125)) -> 
P126: =IF(B126="","",IF((C126+E126-H126+K126-N126)<0,"Revisar dades",C126+E126-H126+K126-N126)) ->  | Q126: =IF(P126="","",IF(COUNT(C126,E126,H126,K126,N126)=COUNT(D126,F126,I126,L126,O126),(C126*D126+E126*F126+H126*I126+K126*L126+N126*O126)/(C126+E126+H126+K126+N126),"")) ->  | R126: =IF(P126="","",IF(Q126="","% MS?","")) ->  | S126: =IF(B126="","",N126-C126) ->  | T126: =IF(S126=0,"",IF(S126="","",(C126*D126+N126*O126)/(C126+N126))) ->  | U126: =IF(G126="","",G126/E126) ->  | V126: =IF(H126="","",J126/H126) ->  | W126: =IF(B126="","",SUM(Y126:AA126)) -> 
P127: =IF(B127="","",IF((C127+E127-H127+K127-N127)<0,"Revisar dades",C127+E127-H127+K127-N127)) ->  | Q127: =IF(P127="","",IF(COUNT(C127,E127,H127,K127,N127)=COUNT(D127,F127,I127,L127,O127),(C127*D127+E127*F127+H127*I127+K127*L127+N127*O127)/(C127+E127+H127+K127+N127),"")) ->  | R127: =IF(P127="","",IF(Q127="","% MS?","")) ->  | S127: =IF(B127="","",N127-C127) ->  | T127: =IF(S127=0,"",IF(S127="","",(C127*D127+N127*O127)/(C127+N127))) ->  | U127: =IF(G127="","",G127/E127) ->  | V127: =IF(H127="","",J127/H127) ->  | W127: =IF(B127="","",SUM(Y127:AA127)) -> 
P128: =IF(B128="","",IF((C128+E128-H128+K128-N128)<0,"Revisar dades",C128+E128-H128+K128-N128)) ->  | Q128: =IF(P128="","",IF(COUNT(C128,E128,H128,K128,N128)=COUNT(D128,F128,I128,L128,O128),(C128*D128+E128*F128+H128*I128+K128*L128+N128*O128)/(C128+E128+H128+K128+N128),"")) ->  | R128: =IF(P128="","",IF(Q128="","% MS?","")) ->  | S128: =IF(B128="","",N128-C128) ->  | T128: =IF(S128=0,"",IF(S128="","",(C128*D128+N128*O128)/(C128+N128))) ->  | U128: =IF(G128="","",G128/E128) ->  | V128: =IF(H128="","",J128/H128) ->  | W128: =IF(B128="","",SUM(Y128:AA128)) -> 
F135: Total compres | G135: =SUM(G125:G134) -> 0 | I135: Total vendes | J135: =SUM(J125:J134) -> 0 | P135: =SUMPRODUCT(P126:P134,Q126:Q134) -> 0 | Q135: =IF(P135=0,"",P135/SUM(P126:P134)) ->  | S135: =SUMPRODUCT(S126:S134,W126:W134) -> 0
B136: Les vedelles Sí consumeixen llet natural | C136: =IF(B136="Les vedelles Sí consumeixen llet natural","-----------------------Si saps la quantitat anual consigna-ho a la casella següent ------------------------------------------------------------------->","") -> -----------------------Si saps la quantitat anual consigna-ho a la casella següent -------------------------------------------------------------------> | P136: =IF(C136="","",IF(K136="","",K136)) -> 
B137: Mà d’obra
B138: Mà d'obra familiar activitat vaques llet | C138: Dies/any | D138: Hores/dia | E138: Si té assignat un sou €/any | F138: UTA | G138: Hores anuals declarades | H138: N. Persones
B140: Pere | C140: 355 | D140: 9 | E140: 25000 | F140: =IF(C140*D140>1920,1,(C140*D140)/1920) -> 1 | G140: =C140*D140 -> 3195 | H140: =IF(F140>0,1,"") -> 1
B141: Jaume | C141: 300 | D141: 8 | E141: 35000 | F141: =IF(C141*D141>1920,1,(C141*D141)/1920) -> 1 | G141: =C141*D141 -> 2400 | H141: 1
F142: =IF(C142*D142>1920,1,(C142*D142)/1920) -> 0 | G142: =C142*D142 -> 0
F143: 0 | G143: 0
F144: 0 | G144: 0
F145: 0 | G145: 0
B146: Totals familiar | F146: =SUM(F140:F145) -> 2 | G146: =SUM(G140:G145) -> 5595 | H146: =SUM(H140:H145) -> 2
B147: Mà d'obra contractada a vaques llet | C147: Dies/any | D147: Hores/dia | E147: €/hora | F147: UTA | G147: Hores anuals declarades | H147: N. Persones | I147: Càlcul sou anual
B149: Francesc | C149: 300 | D149: 9 | E149: 10 | F149: =IF(C149*D149>1920,1,(C149*D149)/1920) -> 1 | G149: =C149*D149 -> 2700 | H149: =IF(F149>0,1,"") -> 1 | I149: =IF(J149="",IF(F149>0,IF(E149="","",G149*E149),""),J149) -> 27000
F150: 0 | G150: 0 | I150: =IF(F150>0,IF(E150="","sou anual?----> ",G150*E150),"") -> 
F151: 0 | G151: 0
F152: 0 | G152: 0
F153: 0 | G153: 0
F154: 0 | G154: 0
B155: Totals contractada | F155: =SUM(F149:F154) -> 1 | G155: =SUM(G149:G154) -> 2700 | H155: =SUM(H149:H154) -> 1
B156: Total mà d'obra | F156: =F146+F155 -> 3 | H156: =H146+H155 -> 3 | I156: =SUM(I149:I154) -> 27000 | J156: =SUM(J149:J154) -> 0
B157: Edificis, maquinària i instal·lacions
B158: Maquinària | H158: Edificis
B159: Tipus, nom... | C159: Any | D159: Valor Compra | E159: Capital amortitzat | F159: Amortització anual | G159: Capital actual | H159: Tipus | I159: Superficie m2 | J159: Any | K159: Cost construcció | L159: Capital Amortitzat | M159: Amortització anual | N159: Capital actual
B161: Banyera Gili 12 Tm | C161: 2003 | D161: 9766.37 | E161: =IF(A_Enc-C161<AA_Maq,D161-G161,D161) -> 9766.37 | F161: =IF(A_Enc-C161<AA_Maq,D161*0.9/AA_Maq,0) -> 0 | G161: =IF(A_Enc-C161<AA_Maq,D161*(1-0.9*(A_Enc-C161)/AA_Maq),D161*0.1) -> 976.637 | H161: femer 700 m2 | J161: 2001 | K161: 25916.84 | L161: =IF(A_Enc-J161<AA_Edif,K161-N161,K161) -> 25916.84 | M161: =IF(A_Enc-J161<AA_Edif,K161*0.95/AA_Edif,0) -> 0 | N161: =IF(A_Enc-J161<AA_Edif,K161-((K161/AA_Edif)*(A_Enc-J161)),K161*0.05) -> 1295.842
B162: John Deere 6820 | C162: 2004 | D162: 52586.2 | E162: 52586.2 | F162: 0 | G162: 5258.62 | H162: 3 Sitjes prefabricats | J162: 2002 | K162: 31999.8 | L162: 30399.81 | M162: 1519.9905 | N162: 1599.99
B163: Compar RBT-600 | C163: 2005 | D163: 21721.27 | E163: 21721.27 | F163: 0 | G163: 2172.127 | H163: Nau de vedelles i pavimentar camins explotació | J163: 2002 | K163: 55630.74 | L163: 52849.203 | M163: 2642.46015 | N163: 2781.537
B164: Rampí krone 4m | C164: 2005 | D164: 3879 | E164: 3879 | F164: 0 | G164: 387.9 | H164: A | J164: 2010 | K164: 74194.49 | L164: 40806.9695 | M164: 3524.238275 | N164: 33387.5205
B165: sembradora 3m amazone | C165: 2008 | D165: 9210.37 | E165: 9210.37 | F165: 0 | G165: 921.037 | H165: B | J165: 2011 | K165: 20265 | L165: 10132.5 | M165: 962.5875 | N165: 10132.5
B166: Cassó pala | C166: 2011 | D166: 1074 | E166: 1074 | F166: 0 | G166: 107.4 | H166: C | J166: 2012 | K166: 17051.6 | L166: 7673.22 | M166: 809.951 | N166: 9378.38
B167: Tractor John deere 6430 amb pala davantera | C167: 2012 | D167: 60000 | E167: 48600 | F167: 5400 | G167: 11400 | H167: D | J167: 2013 | K167: 54260 | L167: 21704 | M167: 2577.35 | N167: 32556
E168: 0 | F168: 0 | G168: 0 | L168: 0 | M168: 0 | N168: 0
E169: 0 | F169: 0 | G169: 0 | L169: 0 | M169: 0 | N169: 0
E170: 0 | F170: 0 | G170: 0 | J170: Total | K170: =SUM(K161:K166) -> 225058.47 | L170: =SUM(L161:L169) -> 189482.5425 | M170: =SUM(M161:M169) -> 12036.57742 | N170: =SUM(N161:N166) -> 58575.7695
E171: 0 | F171: 0 | G171: 0 | H171: Equip de munyir i fred (instal·lacions) | L171: Capital amortitzat | M171: Amortització anual | N171: Cap. Actual
E172: 0 | F172: 0 | G172: 0 | H172: Maquinària | I172: Llocs | J172: Any | K172: Valor de compra
E173: 0 | F173: 0 | G173: 0 | H173: Màquina munyir | J173: 2010 | K173: =92034.3-18500 -> 73534.3 | L173: =IF(A_Enc-J173<AA_Frio,K173-N173,K173) -> 73534.3 | M173: =IF(A_Enc-J173<AA_Frio,K173*0.9/AA_Frio,0) -> 0 | N173: =IF(A_Enc-J173<AA_Frio,K173-((K173/AA_Frio)*(A_Enc-J173)),K173*0.1) -> 7353.43
E174: 0 | F174: 0 | G174: 0 | H174: A | J174: 2011 | K174: 3389.01 | L174: =IF(A_Enc-J174<AA_Frio,K174-N174,K174) -> 3389.01 | M174: =IF(A_Enc-J174<AA_Frio,K174*0.9/AA_Frio,0) -> 0 | N174: =IF(A_Enc-J174<AA_Frio,K174-((K174/AA_Frio)*(A_Enc-J174)),K174*0.1) -> 338.901
E175: 0 | F175: 0 | G175: 0 | H175: B | J175: 2012 | K175: 14095 | L175: =IF(A_Enc-J175<AA_Frio,K175-N175,K175) -> 12685.5 | M175: =IF(A_Enc-J175<AA_Frio,K175*0.9/AA_Frio,0) -> 1268.55 | N175: =IF(A_Enc-J175<AA_Frio,K175-((K175/AA_Frio)*(A_Enc-J175)),K175*0.1) -> 1409.5
E176: 0 | F176: 0 | G176: 0 | H176: C | J176: 2013 | K176: 54071.91 | L176: =IF(A_Enc-J176<AA_Frio,K176-N176,K176) -> 43257.528 | M176: =IF(A_Enc-J176<AA_Frio,K176*0.9/AA_Frio,0) -> 4866.4719 | N176: =IF(A_Enc-J176<AA_Frio,K176-((K176/AA_Frio)*(A_Enc-J176)),K176*0.1) -> 10814.382
E177: 0 | F177: 0 | G177: 0 | H177: Fred | I177: Litres | J177: Any | K177: Valor de compra | L177: =SUM(L173:L176) -> 132866.338 | M177: =SUM(M173:M176) -> 6135.0219 | N177: =SUM(N173:N176) -> 19916.213
E178: 0 | F178: 0 | G178: 0 | H178: Tanc llet | J178: 2010 | K178: 18500 | L178: =IF(A_Enc-J178<AA_Frio,K178-N178,K178) -> 18500 | M178: =IF(A_Enc-J178<AA_Frio,K178*0.9/AA_Frio,0) -> 0 | N178: =IF(A_Enc-J178<AA_Frio,K178-((K178/AA_Frio)*(A_Enc-J178)),K178*0.1) -> 1850
E179: 0 | F179: 0 | G179: 0 | L179: =IF(A_Enc-J179<AA_Frio,K179-N179,K179) -> 0 | M179: =IF(A_Enc-J179<AA_Frio,K179*0.9/AA_Frio,0) -> 0 | N179: =IF(A_Enc-J179<AA_Frio,K179-((K179/AA_Frio)*(A_Enc-J179)),K179*0.1) -> 0
C180: Total | D180: =SUM(D161:D179) -> 158237.21 | E180: =SUM(E161:E179) -> 146837.21 | F180: =SUM(F161:F179) -> 5400 | G180: =SUM(G161:G179) -> 21223.721 | L180: =IF(A_Enc-J180<AA_Frio,K180-N180,K180) -> 0 | M180: =IF(A_Enc-J180<AA_Frio,K180*0.9/AA_Frio,0) -> 0 | N180: =IF(A_Enc-J180<AA_Frio,K180-((K180/AA_Frio)*(A_Enc-J180)),K180*0.1) -> 0
J181: Total | K181: =SUM(K173:K180) -> 163590.22 | L181: =SUM(L178:L180)+L177 -> 151366.338 | M181: =SUM(M178:M180)+M177 -> 6135.0219 | N181: =SUM(N178:N180)+N177 -> 21766.213
B182: Despeses anuals vaquí de llet no consignades anteriorment
B183: Despeses variables | E183: Despeses fixes
B184: Carburants i lubricants | C184: 20384.14 | E184: Coservació i reparació maquinària | F184: 13569.64
B185: Lloguer maquinària | C185: 31486.79 | E185: Conservació i reparació edificis | F185: 1992.22
B186: Veterinari | C186: 9197.84 | E186: Contribucions/impostos | F186: 416.84
B187: Medicines i productes veterinaris | C187: 6027.26 | E187: Interessos préstecs i comissions | F187: 8970.3
B188: Jaç/llits | C188: 11409.19 | E188: Assessories i serveis tècnics | F188: 0
B189: Material divers | C189: 4224.23 | E189: Seguretat social familiar | F189: 8598.66
B190: Llum | C190: 6959.82 | E190: Arrendament sòl agrícola | F190: 9325
B191: Telèfon | C191: 0 | E191: Arrendament edificis | F191: 4200
B192: Detergents i desinfectants | C192: 3027.12 | E192: Altres arrendaments | F192: 1260
B193: Consum aigua | C193: 4489.25 | E193: Assegurances vaques | F193: 5757.03
B194: Inseminacions | C194: 3166.4 | E194: Assegurances maquinària | F194: 775.95
B195: Sous eventuals (inclosa SS) | C195: 0 | E195: Assegurances edificis | F195: 1159.72
E196: Assegurances collites | F196: 0
E197: Control lleter | F197: 1378.35
E198: Administració i gestoria | F198: 1542.32
E199: Assegurances diverses | F199: 329.72
B205: Ingressos de la llet i altres
B206: Destinació de la llet | F206: Altres ingressos
B207: Concepte | C207: L | D207: ct €/l | E207: Total € | F207: Concepte | G207: Total €
B208: Venda llet | C208: 1007718 | D208: =320.971670645955/1000 -> 0.3209716706 | E208: =C208*D208 -> 323448.93 | F208: Venda fems | G208: 0
B209: Venda al detall | E209: 0 | F209: Subvencions | G209: 65541.849
E210: 0 | F210: Indemnitzacions | G210: 0
E211: 0
E212: 0
E213: 0 | F213: Venda vaques, vedelles i toros | G213: 15568.53
B214: Consum familiar real | C214: 0 | E214: =IF(D208<100,(C214*D208),(C214*(D208/C208))) -> 0 | F214: Venda vedells i vedelles | G214: 5120
B215: Consum familiar estimat | C215: =IF(C214>0,0,H229*365) -> 1095 | E215: =IF(D208<100,(C215*D208),(C215*(D208/C208))) -> 351.4639794 | F215: Compra vaques, vedelles i toros | G215: 0
B216: Consum recria | C216: =IF(C136="",0, IF(P136="",Llet_Mam*Dies_Mam*L54,P136)) -> 14378 | F216: Compra vedells i vedelles | G216: 0
B217: Llet_P | C217: =C208+C209+C210+C211+C212 +C213+C214+C215+C216 -> 1023191 | D217: =IF(C217>0,(E218/C217),0) -> 0.3164613391 | F217: Total | G217: =SUM(G208:G214)-SUM(G215:G216) -> 86230.379
B218: Llet_V | C218: =C208+C209+C210+C211+C212+C213 -> 1007718 | D218: =IF(C218>0+AND(E218>0),(E218/C218),0) -> 0.3213204428 | E218: =E208+E209+E210+E213+E214+E215 -> 323800.394
B219: Qualitat llet
B220: Concepte | C220: Mitjana | D220: Concepte | E220: Mitjana
B221: Taxa greix | C221: 3.81 | D221: Cèl·lules | E221: 315
B222: Taxa proteïna | C222: 3.15 | D222: Bacter | E222: 12
B223: Característiques explotació i empresari
B224: Forma legal de l’explotació | E224: Societat civil particular
B225: Lloc residència | E225: Poble
B226: Nivell d’estudis | E226: Superiors
B227: Va rebre algun tipus formació agrària | E227: SI
B229: Edat | C229: 35 | D229: Nº fills | E229: 1 | F229: Persones que depenen | H229: 3
B230: ¿Qui el succeirà a l’explotació? | F230: ns
B231: Edat del successor
B232: Nivell d’estudis
B234: Va rebre algun tipus formació agrària
B235: % Ingressos agrícoles i ramaders sobre ingressos familiars | G235: 90
B237: Dades descriptives de l'explotació i del maneig
B238: Tipus d'explotació | E238: Lliure_cubicles | G238: Grau de neteja instal·lacions de munyir | K238: Bo
B239: Sistema de neteja | E239: Tiràs | G239: Grau de neteja braguers vaques | K239: Bo
B240: =IF(E238="travada","Nombre llocs",IF(E238="Lliure_cubicles","Nombre cubicles","M2 zona repòs")) -> Nombre cubicles | E240: 100 | G240: Freqüència control gestació | K240: 1 per mes
B241: M2 zona exercici | G241: Primera causa reposició | K241: Infertilitat
B242: Teulat aïllat | E242: Sí | G242: Segona causa reposició | K242: producció
B243: Alçada zona repòs | G243: Primer tipus semen elegit | K243: no provat
B244: Tipus d'abeuradors | E244: Pica_boia | G244: Segon tipus semen elegit | K244: carn
B245: =IF(E244="Caçoleta","Nombre de caçoletes","Nombre d'abeuradors") -> Nombre d'abeuradors | G245: Primer problema maneig | K245: mamitis
B246: Tipus de munyida | E246: Espina_peix | G246: Valoració primer problema maneig | K246: preocupa
B247: Línia de llet | E247: Baixa | G247: Segon problema maneig | K247: torsions
B248: Nombre d'unitats munyir | E248: 12 | G248: Valoració segon problema maneig | K248: normal
B249: Tipus polsador | E249: Neumàtic | G249: Segueix programa de millora i selecció genètica? | K249: Sí
B250: Relació succió/massatge | E250: 60_40 | G250: Grau vigilància zels | K250: A l'hora de munyir
B251: Retiradors de munyidores | E251: Si | G251: Edat mitjana del primer part en mesos
... 17 more rows

Sheet EntradaDadesExplotació
A1: Grup de Remugants "Ramon Trias". Full d'entrada de dades d'una explotació per a l'anàlisi de la gestió tècnica i econòmica
D2: =NOW() -> 2024-02-27T09:57:44.270
B12: Referències en el web | C12: http://www.remugants.cat/2/estudi_costos_ccaa_1999_756864.html
C13: http://www.remugants.cat/2/gestio_tecnica_i_economica_765165.html
C14: http://www.remugants.cat/2/gestio_economica_en_vaqui_de_llet_1428607.html
B16: Conjunt de dades que podem modificar. Per a l'anàlisi de grup s'han d'emprar les mateixes | G16: convertidor €/pta
B17: Any | E17: 2021 | G17: PTA | H17: €
B18: Renda referència | E18: 31502 | G18: 490 | H18: =G18/166.386 -> 2.944959311
B19: Interès a aplicar edificis | E19: 0.005393333333 | G19: =H19*166.386 -> 54.90738 | H19: 0.33
B20: Altres tipus d'interès general | E20: 0.005393333333
B21: Valor base vedella 21 a 24 mesos prenyada | E21: 1457.5
B22: Valor base vaca de primer part | E22: 1325
B24: Grup de Remugants | F24: AAAAA
B26: Municipi | D26: Comarca | F26: Província | H26: Nom explotació
B27: B | D27: BB | F27: BBB | H27: BBBB
B28: Control lleter oficial (Sí/No) | H28: Sí
B30: Règim tinença, superfície en ha
B31: Propietat | D31: Arrendament | F31: Total
B32: Secà | C32: Regadiu | D32: Secà | E32: Regadiu | F32: Secà | G32: Regadiu | H32: Total
B33: 50 | C33: 25 | F33: =B33+D33 -> 50 | G33: =C33+E33 -> 25 | H33: =SUM(B33:E33) -> 75
B35: Cultius, superfície dedicada a llet
E36: Superfície a llet | G36: Rendiment kg/ha
E37: Secà | F37: Regadiu | G37: Secà | H37: Regadiu
B38: Farratges i altres cultius per a vaques de llet | E38: =SUM(E39:E47) -> 50 | F38: =SUM(F39:F47) -> 25
B39: Alfals | F39: 10
B40: Raigràs/Blat de moro | F40: 15
B41: Civada | E41: 25
B42: Sorgo | E42: 25
J51: =IF(F51>D51,"Error: superfície regadiu a llet no pot ser superior a la total","") -> 
B52: Superfície a llet | E52: =E38 -> 50 | F52: =F38 -> 25 | G52: =E52+F52 -> 75
E53: =IF(E52>F33,"Revisar supefície secà","") ->  | F53: =IF(F52>G33,"Revisar supefície regadiu","") -> 
B55: Despeses parcel·les cultius per a llet, €
B56: Tipus de despesa | C56: =IF($B39="","",$B39) -> Alfals | D56: =IF($B40="","",$B40) -> Raigràs/Blat de moro | E56: =IF($B41="","",$B41) -> Civada | F56: =IF(B42="","",B42) -> Sorgo | G56: =IF(B43="","",B43) ->  | H56: =IF($B44="","",$B44) ->  | I56: =IF($B45="","",$B45) ->  | J56: =IF($B46="","",$B46) ->  | K56: =IF($B47="","",$B47) ->  | L56: =IF($B48="","",$B49) ->  | M56: =IF($B50="","",$B50) ->  | N56: =IF($B51="","",$B51) ->  | O56: Si només tenim el total de despeses de cada partida | P56: Total
B57: Llavors | O57: 4000 | P57: =IF(O57="",SUM(C57:G57),O57) -> 4000
B58: Adobs | O58: 3200 | P58: =IF(O58="",SUM(C58:G58),O58) -> 3200
B59: Tractaments | O59: 2100 | P59: 2100
B60: Plàstics i conservants | O60: 1321 | P60: 1321
B61: Altres (aigua reg, etc.) | O61: 2000 | P61: 2000
B62: Total | C62: =SUM(C57:C61) -> 0 | D62: =SUM(D57:D61) -> 0 | E62: =SUM(E57:E61) -> 0 | F62: =SUM(F57:F61) -> 0 | G62: =SUM(G57:G61) -> 0 | H62: =SUM(H57:H61) -> 0 | I62: 0 | J62: 0 | K62: 0 | L62: 0 | M62: =SUM(M57:M61) -> 0 | N62: =SUM(N57:N61) -> 0 | O62: =SUM(O57:O61) -> 12621 | P62: 12621
B64: Preu mercat arrendaments de terres a la zona (€/ha)
B65: Tipus | C65: Secà | D65: Regadiu
B66: Arrendada | C66: 121 | D66: 270
B68: Inventari ramat i incidències
B69: Vaques presents | C69: Inventari inici d'any | E69: Compres, altes, vendes, baixes | J69: Inventari final d'any
E70: Durant tot l'any
B71: Nº lactació | C71: Nº vaques | D71: % | E71: Compres | F71: Altes reposició | G71: Vendes (per a vida) | H71: Vendes (a escorxador) | I71: Baixes per mort | J71: Nº vaques | K71: % | L71: Mitjana anual | M71: % | N71: UBM | O71: Capital bestiar | P71: Valor canvi inventari
B72: 1 lactació | C72: 38 | D72: =IF(C75="","",C72/C75) -> 0.3423423423 | E72: 0 | F72: 25 | G72: 0 | H72: 0 | I72: 0 | J72: 43 | K72: =IF(J75="","",J72/J75) -> 0.3553719008 | L72: =(C72+J72)/2 -> 40.5 | M72: =L72/$L$75 -> 0.349137931 | O72: =L72*Preu_Vaca -> 53662.5 | P72: =(J72-C72)*Preu_Vaca -> 6625
B73: 2 lactació | C73: 48 | D73: =IF(C75="","",C73/C75) -> 0.4324324324 | E73: 0 | G73: 0 | H73: 0 | I73: 0 | J73: 49 | K73: =IF(J75="","",J73/J75) -> 0.4049586777 | L73: 48.5 | M73: =L73/$L$75 -> 0.4181034483 | O73: =L73*Preu_Vaca*0.9 -> 57836.25 | P73: =(J73-C73)*Preu_Vaca*0.9 -> 1192.5
B74: 3 i més lactació | C74: 25 | D74: =IF(C75="","",C74/C75) -> 0.2252252252 | E74: 0 | G74: 0 | H74: 16 | I74: 5 | J74: 29 | K74: =IF(J75="","",J74/J75) -> 0.2396694215 | L74: 27 | M74: =L74/$L$75 -> 0.2327586207 | O74: =L74*Preu_Vaca*0.55 -> 19676.25 | P74: =(J74-C74)*Preu_Vaca*0.55 -> 2915
B75: Totals | C75: =SUM(C72:C74) -> 111 | D75: 1 | E75: 0 | F75: 25 | G75: 0 | H75: 16 | I75: 5 | J75: 121 | K75: 1 | L75: 116 | N75: =L75 -> 116 | O75: =SUM(O72:O74) -> 131175 | P75: =SUM(P72:P74) -> 10732.5
B76: Vaques eixutes | D76: _____________________________________________________________________________________________________________ | I76: Vaques eixutes | L76: 0 | M76: =L76/L75 -> 0 | O76: Capital aproximació vedelles
B77: Vedelles < 1 any | C77: =SUM(C84:C87) -> 42 | D77: _____________________________________________________________________________________________________________ | I77: Vedelles < 1 any | J77: =SUM(J84:J87) -> 37 | L77: 39.5 | O77: =L77*Preu_vedella*0.3625 -> 20869.57812 | P77: =(J77-C77)*Preu_vedella*0.3625 -> -2641.71875
B78: Vedelles > 1 any no prenyades | C78: 10 | D78: _____________________________________________________________________________________________ | H78: Vedelles > 1 any no prenyades | J78: 6 | L78: 8 | O78: =(L78+L79)*Preu_vedella*0.7638 -> 47312.63625 | P78: =(J78-C78+J79-C79)*Preu_vedella*0.7638 -> -7792.6695
B79: Vedelles prenyades | C79: =C94-C77-C78 -> 36 | D79: _____________________________________________________________________________________________________________ | I79: Vedelles prenyades | J79: =J94-J77-J78 -> 33 | L79: 34.5 | O79: =SUM(O77:O78) -> 68182.21438
B80: Total vedelles | C80: =SUM(C77:C79) -> 88 | D80: _____________________________________________________________________________________________________________ | I80: Total vedelles | J80: =SUM(J77:J79) -> 76 | L80: 82
B81: Vedelles de recria | C81: Inventari inici d'any | J81: Inventari final d'any
N82: Capital bestiar | O82: Valor canvi inventari
B83: Edat | C83: Nº vedelles | D83: % | I83: Edat | J83: Nº vedelles | K83: % | L83: Mitjana | M83: UBM
B84: 0 a 3 mesos | C84: 10 | D84: =IF(C94="","",C84/C94) -> 0.1136363636 | E84: _________________________________________________________________________________________________ | I84: 0 a 3 mesos | J84: 10 | K84: =IF(J94="","",J84/J94) -> 0.1315789474 | L84: =(C84+J84)/2 -> 10 | M84: =L84*0.4 -> 4 | N84: =L84*Preu_vedella*0.2 -> 2915 | O84: =(J84-C84)*Preu_vedella*0.2 -> 0
B85: 3 a 6 mesos | C85: 15 | D85: =IF(C94="","",C85/C94) -> 0.1704545455 | E85: _________________________________________________________________________________________________ | I85: 3 a 6 mesos | J85: 12 | K85: =IF(J94="","",J85/J94) -> 0.1578947368 | L85: 13.5 | M85: =L85*0.4 -> 5.4 | N85: =L85*Preu_vedella*0.33 -> 6493.1625 | O85: =(J85-C85)*Preu_vedella*0.33 -> -1442.925
B86: 6 a 9 mesos | C86: 6 | D86: =IF(C94="","",C86/C94) -> 0.06818181818 | E86: _________________________________________________________________________________________________ | I86: 6 a 9 mesos | J86: 9 | K86: =IF(J94="","",J86/J94) -> 0.1184210526 | L86: 7.5 | M86: =L86*0.6 -> 4.5 | N86: =L86*Preu_vedella*0.42 -> 4591.125 | O86: =M86*Preu_vedella*0.42 -> 2754.675
B87: 9 a 12 mesos | C87: 11 | D87: =IF(C94="","",C87/C94) -> 0.125 | E87: _________________________________________________________________________________________________ | I87: 9 a 12 mesos | J87: 6 | K87: =IF(J94="","",J87/J94) -> 0.07894736842 | L87: 8.5 | M87: 5.1 | N87: =L87*Preu_vedella*0.5 -> 6194.375 | O87: =(J87-C87)*Preu_vedella*0.5 -> -3643.75
B88: 12 a 15 mesos | C88: 13 | D88: =IF(C94="","",C88/C94) -> 0.1477272727 | E88: _________________________________________________________________________________________________ | I88: 12 a 15 mesos | J88: 15 | K88: =IF(J94="","",J88/J94) -> 0.1973684211 | L88: 14 | M88: 8.4 | N88: =L88*Preu_vedella*0.67 -> 13671.35 | O88: =(J88-C88)*Preu_vedella*0.67 -> 1953.05
B89: 15 a 18 mesos | C89: 15 | D89: =IF(C94="","",C89/C94) -> 0.1704545455 | E89: _________________________________________________________________________________________________ | I89: 15 a 18 mesos | J89: 12 | K89: =IF(J94="","",J89/J94) -> 0.1578947368 | L89: 13.5 | M89: 8.1 | N89: =L89*Preu_vedella*0.83 -> 16331.2875 | O89: =(J89-C89)*Preu_vedella*0.83 -> -3629.175
B90: 18 a 21 mesos | C90: 6 | D90: =IF(C94="","",C90/C94) -> 0.06818181818 | E90: _________________________________________________________________________________________________ | I90: 18 a 21 mesos | J90: 6 | K90: =IF(J94="","",J90/J94) -> 0.07894736842 | L90: 6 | M90: 3.6 | N90: =L90*Preu_vedella*0.83 -> 7258.35 | O90: =(J90-C90)*Preu_vedella*0.83 -> 0
B91: 21 a 24 mesos | C91: 5 | D91: =IF(C94="","",C91/C94) -> 0.05681818182 | E91: _________________________________________________________________________________________________ | I91: 21 a 24 mesos | J91: 3 | K91: =IF(J94="","",J91/J94) -> 0.03947368421 | L91: 4 | M91: 2.4 | N91: =L91*Preu_vedella -> 5830 | O91: =(J91-C91)*Preu_vedella -> -2915
B92: 24 a 27 mesos | C92: 7 | D92: =IF(C94="","",C92/C94) -> 0.07954545455 | E92: _________________________________________________________________________________________________ | I92: 24 a 27 mesos | J92: 2 | K92: =IF(J94="","",J92/J94) -> 0.02631578947 | L92: 4.5 | M92: =L92 -> 4.5 | N92: =L92*Preu_vedella*0.83 -> 5443.7625 | O92: =(J92-C92)*Preu_vedella*0.83 -> -6048.625
B93: >27 mesos | C93: 0 | D93: =IF(C94="","",C93/C94) -> 0 | E93: _________________________________________________________________________________________________ | I93: >27 mesos | J93: 1 | K93: =IF(J94="","",J93/J94) -> 0.01315789474 | L93: 0.5 | M93: =L93 -> 0.5 | N93: =L93*Preu_vedella*0.67 -> 488.2625 | O93: =(J93-C93)*Preu_vedella*0.67 -> 976.525
B94: Total vedelles | C94: =SUM(C84:C93) -> 88 | D94: =SUM(D84:D93) -> 1 | E94: _________________________________________________________________________________________________ | I94: Total vedelles | J94: =SUM(J84:J93) -> 76 | K94: =SUM(K84:K93) -> 1 | L94: 82 | M94: =SUM(M84:M93) -> 46.5 | N94: =SUM(N84:N93) -> 69216.675 | O94: =SUM(O84:O93) -> -11995.225
B95: Sementals | C95: Inventari inici d'any | J95: Inventari final d'any
B97: Edat | C97: Nº toros | D97: % | I97: Edat | J97: Nº toros | K97: % | L97: Mitjana | M97: UBM | N97: Capital bestiar | O97: Valor canvi inventari
B98: <2 anys | C98: 0 | D98: =IF(C101=0,0,C98/C101) -> 0 | E98: _________________________________________________________________________________________________ | I98: <2 anys | J98: 0 | K98: =IF($J$101=0,0,J98/$J$101) -> 0 | L98: =(C98+J98)/2 -> 0 | M98: =L98*0.6 -> 0
B99: 2 a 5 anys | C99: 1 | D99: =IF(C101=0,0,C99/C101) -> 1 | E99: _________________________________________________________________________________________________ | I99: 2 a 5 anys | J99: 1 | K99: =IF($J$101=0,0,J99/$J$101) -> 1 | L99: =(C99+J99)/2 -> 1 | M99: =L99*1 -> 1
B100: >5 anys | C100: 0 | D100: =IF(C101=0,0,C100/C101) -> 0 | E100: _________________________________________________________________________________________________ | I100: >5 anys | J100: 0 | K100: =IF($J$101=0,0,J100/$J$101) -> 0 | L100: =(C100+J100)/2 -> 0 | M100: =L100*1 -> 0
B101: Total | C101: =SUM(C98:C100) -> 1 | D101: =SUM(D98:D100) -> 1 | E101: _________________________________________________________________________________________________ | I101: Total | J101: =SUM(J98:J100) -> 1 | K101: =SUM(K98:K100) -> 1 | L101: =(C101+J101)/2 -> 1 | M101: =SUM(M98:M100) -> 1 | N101: =M101*Preu_Vaca -> 1325 | O101: =(J101-C101)*Preu_Vaca -> 0
E102: % reposició | G102: % eliminació | H102: Tendència
B103: Nombre mitjà de vaques | C103: =(J75+C75)/2 -> 116 | E103: =(E75+F75)/C103 -> 0.2155172414 | G103: =(G75+H75+I75)/C103 -> 0.1810344828 | H103: =IF((E103-G103)>0,"Creixement","Decreixement") -> Creixement | I103: =(J75-C75)/C75 -> 0.09009009009
B108: Consum d'ingredients per a l'alimentació
B110: Farratges | C110: Inventari inici d'any | E110: Compres | H110: Vendes | K110: Producció | N110: Inventari final d'any | P110: Consum | S110: Inventari | U110: Preus
E111: Durant tot l'any | H111: Durant tot l'any | K111: Durant l'any
C112: Quantitat, kg | D112: % MS | E112: Compres, quantitat en kg | F112: % MS | G112: Import compres | H112: Vendes, quantitat en kg | I112: % MS | J112: Import vendes | K112: Producció en kg | L112: % MS | M112: Cost de producció | N112: Quantitat, kg | O112: % MS | P112: Consum, kg | Q112: % MS | S112: Variació inventari | T112: % MS | U112: Preu compres | V112: Preu vendes | W112: Preu mitjà
B113: Ensitjat sorgo | C113: 90000 | D113: 0.3 | K113: 500000 | L113: 0.3 | M113: 0.024 | N113: 405000 | O113: 0.3 | P113: =IF(B113="","",IF((C113+E113-H113+K113-N113)<0,"Revisar dades",C113+E113-H113+K113-N113)) -> 185000 | Q113: =IF(P113="","",IF(COUNT(C113,E113,H113,K113,N113)=COUNT(D113,F113,I113,L113,O113),(C113*D113+E113*F113+H113*I113+K113*L113+N113*O113)/(C113+E113+H113+K113+N113),"")) -> 0.3 | R113: =IF(P113="","",IF(Q113="","% MS?","")) ->  | S113: =IF(B113="","",N113-C113) -> 315000 | T113: =IF(S113=0,"",IF(S113="","",(C113*D113+N113*O113)/(C113+N113))) -> 0.3 | U113: =IF(G113="","",G113/E113) ->  | V113: =IF(H113="","",J113/H113) ->  | W113: =IF(B113="","",SUM(Y113:AA113)) -> 0.024 | X113: =E113+H113+K113 -> 500000 | Y113: =IF(U113="","",U113*(E113/X113)) ->  | Z113: =IF(V113="","",V113*(H113/(X113))) ->  | AA113: =IF(M113="","",M113*(K113/(X113))) -> 0.024
B114: Ensitjat Raigràs | C114: 120000 | D114: 0.28 | K114: 500000 | L114: 0.28 | M114: 0.03 | N114: 120000 | O114: 0.28 | P114: =IF(B114="","",IF((C114+E114-H114+K114-N114)<0,"Revisar dades",C114+E114-H114+K114-N114)) -> 500000 | Q114: =IF(P114="","",IF(COUNT(C114,E114,H114,K114,N114)=COUNT(D114,F114,I114,L114,O114),(C114*D114+E114*F114+H114*I114+K114*L114+N114*O114)/(C114+E114+H114+K114+N114),"")) -> 0.28 | R114: =IF(P114="","",IF(Q114="","% MS?","")) ->  | S114: =IF(B114="","",N114-C114) -> 0 | T114: =IF(S114=0,"",IF(S114="","",(C114*D114+N114*O114)/(C114+N114))) ->  | U114: =IF(G114="","",G114/E114) ->  | V114: =IF(H114="","",J114/H114) ->  | W114: =IF(B114="","",SUM(Y114:AA114)) -> 0.03 | X114: 500000 | AA114: 0.03
B115: Fenc Raigràs | K115: 80000 | L115: 0.88 | M115: 0.1 | N115: 67800 | O115: 0.88 | P115: 12200 | Q115: 0.88 | S115: 67800 | T115: 0.88 | W115: 0.1 | X115: 80000 | AA115: 0.1
B116: Alfals fenc | C116: 26400 | D116: 0.88 | K116: 90000 | L116: 0.88 | M116: 0.12 | N116: 71550 | O116: 0.88 | P116: 44850 | Q116: 0.88 | S116: 45150 | T116: 0.88 | W116: 0.12 | X116: 90000 | AA116: 0.12
B117: Civada de flor | C117: 67500 | D117: 0.88 | K117: 100000 | L117: 0.88 | M117: 0.1 | N117: 97200 | O117: 0.88 | P117: 70300 | Q117: 0.88 | S117: 29700 | T117: 0.88 | W117: 0.1 | X117: 100000 | AA117: 0.1
X118: 0
X119: 0
P120: =IF(B120="","",IF((C120+E120-H120+K120-N120)<0,"Revisar dades",C120+E120-H120+K120-N120)) ->  | Q120: =IF(P120="","",IF(COUNT(C120,E120,H120,K120,N120)=COUNT(D120,F120,I120,L120,O120),(C120*D120+E120*F120+H120*I120+K120*L120+N120*O120)/(C120+E120+H120+K120+N120),"")) ->  | R120: =IF(P120="","",IF(Q120="","% MS?","")) ->  | S120: =IF(B120="","",N120-C120) ->  | T120: =IF(S120=0,"",IF(S120="","",(C120*D120+N120*O120)/(C120+N120))) ->  | U120: =IF(G120="","",G120/E120) ->  | V120: =IF(H120="","",J120/H120) ->  | W120: =IF(B120="","",SUM(Y120:AA120)) ->  | X120: =E120+H120+K120 -> 0 | Y120: =IF(U120="","",U120*(E120/X120)) ->  | Z120: =IF(V120="","",V120*(H120/(X120))) ->  | AA120: =IF(M120="","",M120*(K120/(X120))) -> 
P121: =IF(B121="","",IF((C121+E121-H121+K121-N121)<0,"Revisar dades",C121+E121-H121+K121-N121)) ->  | Q121: =IF(P121="","",IF(COUNT(C121,E121,H121,K121,N121)=COUNT(D121,F121,I121,L121,O121),(C121*D121+E121*F121+H121*I121+K121*L121+N121*O121)/(C121+E121+H121+K121+N121),"")) ->  | R121: =IF(P121="","",IF(Q121="","% MS?","")) ->  | S121: =IF(B121="","",N121-C121) ->  | T121: =IF(S121=0,"",IF(S121="","",(C121*D121+N121*O121)/(C121+N121))) ->  | U121: =IF(G121="","",G121/E121) ->  | V121: =IF(H121="","",J121/H121) ->  | W121: =IF(B121="","",SUM(Y121:AA121)) ->  | X121: =E121+H121+K121 -> 0 | Y121: =IF(U121="","",U121*(E121/X121)) ->  | Z121: =IF(V121="","",V121*(H121/(X121))) ->  | AA121: =IF(M121="","",M121*(K121/(X121))) -> 
P122: =IF(B122="","",IF((C122+E122-H122+K122-N122)<0,"Revisar dades",C122+E122-H122+K122-N122)) ->  | Q122: =IF(P122="","",IF(COUNT(C122,E122,H122,K122,N122)=COUNT(D122,F122,I122,L122,O122),(C122*D122+E122*F122+H122*I122+K122*L122+N122*O122)/(C122+E122+H122+K122+N122),"")) ->  | R122: =IF(P122="","",IF(Q122="","% MS?","")) ->  | S122: =IF(B122="","",N122-C122) ->  | T122: =IF(S122=0,"",IF(S122="","",(C122*D122+N122*O122)/(C122+N122))) ->  | U122: =IF(G122="","",G122/E122) ->  | V122: =IF(H122="","",J122/H122) ->  | W122: =IF(B122="","",SUM(Y122:AA122)) ->  | X122: =E122+H122+K122 -> 0 | Y122: =IF(U122="","",U122*(E122/X122)) ->  | Z122: =IF(V122="","",V122*(H122/(X122))) ->  | AA122: =IF(M122="","",M122*(K122/(X122))) -> 
P123: =IF(B123="","",IF((C123+E123-H123+K123-N123)<0,"Revisar dades",C123+E123-H123+K123-N123)) ->  | Q123: =IF(P123="","",IF(COUNT(C123,E123,H123,K123,N123)=COUNT(D123,F123,I123,L123,O123),(C123*D123+E123*F123+H123*I123+K123*L123+N123*O123)/(C123+E123+H123+K123+N123),"")) ->  | R123: =IF(P123="","",IF(Q123="","% MS?","")) ->  | S123: =IF(B123="","",N123-C123) ->  | T123: =IF(S123=0,"",IF(S123="","",(C123*D123+N123*O123)/(C123+N123))) ->  | U123: =IF(G123="","",G123/E123) ->  | V123: =IF(H123="","",J123/H123) ->  | W123: =IF(B123="","",SUM(Y123:AA123)) ->  | X123: =E123+H123+K123 -> 0 | Y123: =IF(U123="","",U123*(E123/X123)) ->  | Z123: =IF(V123="","",V123*(H123/(X123))) ->  | AA123: =IF(M123="","",M123*(K123/(X123))) -> 
P124: =IF(B124="","",IF((C124+E124-H124+K124-N124)<0,"Revisar dades",C124+E124-H124+K124-N124)) ->  | Q124: =IF(P124="","",IF(COUNT(C124,E124,H124,K124,N124)=COUNT(D124,F124,I124,L124,O124),(C124*D124+E124*F124+H124*I124+K124*L124+N124*O124)/(C124+E124+H124+K124+N124),"")) ->  | R124: =IF(P124="","",IF(Q124="","% MS?","")) ->  | S124: =IF(B124="","",N124-C124) ->  | T124: =IF(S124=0,"",IF(S124="","",(C124*D124+N124*O124)/(C124+N124))) ->  | U124: =IF(G124="","",G124/E124) ->  | V124: =IF(H124="","",J124/H124) ->  | W124: =IF(B124="","",SUM(Y124:AA124)) ->  | X124: =E124+H124+K124 -> 0 | Y124: =IF(U124="","",U124*(E124/X124)) ->  | Z124: =IF(V124="","",V124*(H124/(X124))) ->  | AA124: =IF(M124="","",M124*(K124/(X124))) -> 
F125: Total compres | G125: =SUM(G113:G124) -> 0 | I125: Total vendes | J125: =SUM(J113:J124) -> 0 | P125: Total valor variació inventari | S125: =SUMPRODUCT(S113:S124,W113:W124) -> 22728
C126: Inventari inici d'any | E126: Compres | H126: Vendes | K126: Producció | N126: Inventari final d'any
E127: Durant tot l'any | H127: Durant tot l'any | K127: Durant l'any
B128: Concentrats, subproductes i additius, a vaques | C128: Quantitat, kg | D128: % MS | E128: Compres, quantitat en kg | F128: % MS | G128: Import compres | H128: Vendes, quantitat en kg | I128: % MS | J128: Import vendes | K128: Producció en kg | L128: % MS | M128: Cost de producció | N128: Quantitat, kg | O128: % MS | P128: Consum, kg | Q128: % MS | S128: Variació inventari | T128: % MS | U128: Preu compres | V128: Preu vendes | W128: Preu mitjà
B129: Total | C129: 45 | D129: 0.88 | E129: 524584.6 | F129: 0.88 | G129: 152821.8 | P129: =IF(B129="","",IF((C129+E129-H129+K129-N129)<0,"Revisar dades",C129+E129-H129+K129-N129)) -> 524629.6 | Q129: =IF(P129="","",IF(COUNT(C129,E129,H129,K129,N129)=COUNT(D129,F129,I129,L129,O129),(C129*D129+E129*F129+H129*I129+K129*L129+N129*O129)/(C129+E129+H129+K129+N129),"")) -> 0.88 | R129: =IF(P129="","",IF(Q129="","% MS?","")) ->  | S129: =IF(B129="","",N129-C129) -> -45 | T129: =IF(S129=0,"",IF(S129="","",(C129*D129+N129*O129)/(C129+N129))) -> 0.88 | U129: =IF(G129="","",G129/E129) -> 0.2913196461 | V129: =IF(H129="","",J129/H129) ->  | W129: =IF(B129="","",SUM(Y129:AA129)) -> 0.2913196461 | X129: =E129+H129+K129 -> 524584.6 | Y129: =IF(U129="","",U129*(E129/X129)) -> 0.2913196461 | Z129: =IF(V129="","",V129*(H129/(X129))) ->  | AA129: =IF(M129="","",M129*(K129/(X129))) -> 
P130: =IF(B130="","",IF((C130+E130-H130+K130-N130)<0,"Revisar dades",C130+E130-H130+K130-N130)) ->  | Q130: =IF(P130="","",IF(COUNT(C130,E130,H130,K130,N130)=COUNT(D130,F130,I130,L130,O130),(C130*D130+E130*F130+H130*I130+K130*L130+N130*O130)/(C130+E130+H130+K130+N130),"")) ->  | R130: =IF(P130="","",IF(Q130="","% MS?","")) ->  | S130: =IF(B130="","",N130-C130) ->  | U130: =IF(G130="","",G130/E130) ->  | V130: =IF(H130="","",J130/H130) ->  | W130: =IF(B130="","",SUM(Y130:AA130)) ->  | X130: =E130+H130+K130 -> 0 | Y130: =IF(U130="","",U130*(E130/X130)) ->  | Z130: =IF(V130="","",V130*(H130/(X130))) ->  | AA130: =IF(M130="","",M130*(K130/(X130))) -> 
X131: 0
X132: 0
X133: 0
X134: 0
X135: 0
X136: 0
X137: 0
X138: 0
X139: 0
X140: 0
X141: 0
X142: 0
T143: =IF(S143="","",(C143*D143+N143*O143)/(C143+N143)) ->  | X143: 0
F144: Total compres | G144: =SUM(G129:G143) -> 152821.8 | I144: Total vendes | J144: =SUM(J129:J143) -> 0 | P144: =SUMPRODUCT(P129:P143,Q129:Q143) -> 461674.048 | Q144: =IF(P144=0,"",P144/SUM(P129:P143)) -> 0.88 | S144: =SUMPRODUCT(S129:S143,W129:W143) -> -13.10938407
C145: Inventari inici d'any | E145: Compres | H145: Vendes | K145: Producció | N145: Inventari final d'any
E146: Durant tot l'any | H146: Durant to l'any | K146: Durant l'any
B147: Concentrats, subproductes i additius, a recria | C147: Quantitat, kg | D147: % MS | E147: Compres, quantitat en kg | F147: % MS | G147: Import compres | H147: Vendes, quantitat en kg | I147: % MS | J147: Import vendes | K147: Producció en kg | L147: % MS | M147: Cost de producció | N147: Quantitat, kg | O147: % MS | P147: Consum, kg (l llet) | Q147: % MS | S147: Variació inventari | T147: % MS | U147: Preu compres | V147: Preu vendes | W147: Preu mitjà
P148: =IF(B148="","",IF((C148+E148-H148+K148-N148)<0,"Revisar dades",C148+E148-H148+K148-N148)) ->  | Q148: =IF(P148="","",IF(COUNT(C148,E148,H148,K148,N148)=COUNT(D148,F148,I148,L148,O148),(C148*D148+E148*F148+H148*I148+K148*L148+N148*O148)/(C148+E148+H148+K148+N148),"")) ->  | R148: =IF(P148="","",IF(Q148="","% MS?","")) ->  | S148: =IF(B148="","",N148-C148) ->  | T148: =IF(S148=0,"",IF(S148="","",(C148*D148+N148*O148)/(C148+N148))) ->  | U148: =IF(G148="","",G148/E148) ->  | V148: =IF(H148="","",J148/H148) ->  | W148: =IF(B148="","",SUM(Y148:AA148)) ->  | X148: =E148+H148+K148 -> 0 | Y148: =IF(U148="","",U148*(E148/X148)) ->  | Z148: =IF(V148="","",V148*(H148/(X148))) ->  | AA148: =IF(M148="","",M148*(K148/(X148))) -> 
P149: =IF(B149="","",IF((C149+E149-H149+K149-N149)<0,"Revisar dades",C149+E149-H149+K149-N149)) ->  | Q149: =IF(P149="","",IF(COUNT(C149,E149,H149,K149,N149)=COUNT(D149,F149,I149,L149,O149),(C149*D149+E149*F149+H149*I149+K149*L149+N149*O149)/(C149+E149+H149+K149+N149),"")) ->  | R149: =IF(P149="","",IF(Q149="","% MS?","")) ->  | S149: =IF(B149="","",N149-C149) ->  | T149: =IF(S149=0,"",IF(S149="","",(C149*D149+N149*O149)/(C149+N149))) ->  | U149: =IF(G149="","",G149/E149) ->  | V149: =IF(H149="","",J149/H149) ->  | W149: =IF(B149="","",SUM(Y149:AA149)) ->  | X149: =E149+H149+K149 -> 0 | Y149: =IF(U149="","",U149*(E149/X149)) ->  | Z149: =IF(V149="","",V149*(H149/(X149))) ->  | AA149: =IF(M149="","",M149*(K149/(X149))) -> 
P150: =IF(B150="","",IF((C150+E150-H150+K150-N150)<0,"Revisar dades",C150+E150-H150+K150-N150)) ->  | Q150: =IF(P150="","",IF(COUNT(C150,E150,H150,K150,N150)=COUNT(D150,F150,I150,L150,O150),(C150*D150+E150*F150+H150*I150+K150*L150+N150*O150)/(C150+E150+H150+K150+N150),"")) ->  | R150: =IF(P150="","",IF(Q150="","% MS?","")) ->  | S150: =IF(B150="","",N150-C150) ->  | T150: =IF(S150=0,"",IF(S150="","",(C150*D150+N150*O150)/(C150+N150))) ->  | U150: =IF(G150="","",G150/E150) ->  | V150: =IF(H150="","",J150/H150) ->  | W150: =IF(B150="","",SUM(Y150:AA150)) ->  | X150: =E150+H150+K150 -> 0 | Y150: =IF(U150="","",U150*(E150/X150)) ->  | Z150: =IF(V150="","",V150*(H150/(X150))) ->  | AA150: =IF(M150="","",M150*(K150/(X150))) -> 
P151: =IF(B151="","",IF((C151+E151-H151+K151-N151)<0,"Revisar dades",C151+E151-H151+K151-N151)) ->  | Q151: =IF(P151="","",IF(COUNT(C151,E151,H151,K151,N151)=COUNT(D151,F151,I151,L151,O151),(C151*D151+E151*F151+H151*I151+K151*L151+N151*O151)/(C151+E151+H151+K151+N151),"")) ->  | R151: =IF(P151="","",IF(Q151="","% MS?","")) ->  | S151: =IF(B151="","",N151-C151) ->  | T151: =IF(S151=0,"",IF(S151="","",(C151*D151+N151*O151)/(C151+N151))) ->  | U151: =IF(G151="","",G151/E151) ->  | V151: =IF(H151="","",J151/H151) ->  | W151: =IF(B151="","",SUM(Y151:AA151)) ->  | X151: =E151+H151+K151 -> 0 | Y151: =IF(U151="","",U151*(E151/X151)) ->  | Z151: =IF(V151="","",V151*(H151/(X151))) ->  | AA151: =IF(M151="","",M151*(K151/(X151))) -> 
X152: 0
X153: 0
X154: 0
X155: 0
X156: 0
X157: =E157+H157+K157 -> 0 | Y157: =IF(U157="","",U157*(E157/X157)) ->  | Z157: =IF(V157="","",V157*(H157/(X157))) ->  | AA157: =IF(M157="","",M157*(K157/(X157))) -> 
F158: Total compres | G158: =SUM(G148:G157) -> 0 | I158: Total vendes | J158: =SUM(J148:J157) -> 0 | P158: =SUMPRODUCT(P149:P157,Q149:Q157) -> 0 | Q158: =IF(P158=0,"",P158/SUM(P149:P157)) ->  | S158: =SUMPRODUCT(S149:S157,W149:W157) -> 0
B159: Les vedelles Sí consumeixen llet natural | C159: =IF(B159="Les vedelles Sí consumeixen llet natural","-----------------------Si saps la quantitat anual consigna-ho a la casella següent ------------------------------------------------------------------->","") -> -----------------------Si saps la quantitat anual consigna-ho a la casella següent -------------------------------------------------------------------> | P159: =IF(C159="","",IF(K159="","",K159)) -> 
B160: Mà d’obra
B161: Mà d'obra familiar activitat vaques llet | C161: Dies/any | D161: Hores/dia | E161: Si té assignat un sou €/any | F161: UTA | G161: Hores anuals declarades | H161: N. Persones
B163: Pere | C163: 355 | D163: 9 | E163: 25000 | F163: =IF(C163*D163>1920,1,(C163*D163)/1920) -> 1 | G163: =C163*D163 -> 3195 | H163: =IF(F163>0,1,"") -> 1
B164: Jaume | C164: 300 | D164: 8 | E164: 35000 | F164: =IF(C164*D164>1920,1,(C164*D164)/1920) -> 1 | G164: =C164*D164 -> 2400 | H164: 1
F165: =IF(C165*D165>1920,1,(C165*D165)/1920) -> 0 | G165: =C165*D165 -> 0
F166: 0 | G166: 0
F167: 0 | G167: 0
F168: 0 | G168: 0
B169: Totals familiar | F169: =SUM(F163:F168) -> 2 | G169: =SUM(G163:G168) -> 5595 | H169: =SUM(H163:H168) -> 2
B170: Mà d'obra contractada a vaques llet | C170: Dies/any | D170: Hores/dia | E170: €/hora | F170: UTA | G170: Hores anuals declarades | H170: N. Persones | I170: Càlcul sou anual
B172: Francesc | C172: 300 | D172: 9 | E172: 10 | F172: =IF(C172*D172>1920,1,(C172*D172)/1920) -> 1 | G172: =C172*D172 -> 2700 | H172: =IF(F172>0,1,"") -> 1 | I172: =IF(J172="",IF(F172>0,IF(E172="","",G172*E172),""),J172) -> 27000
F173: 0 | G173: 0 | I173: =IF(F173>0,IF(E173="","sou anual?----> ",G173*E173),"") -> 
F174: 0 | G174: 0
F175: 0 | G175: 0
F176: 0 | G176: 0
F177: 0 | G177: 0
B178: Totals contractada | F178: =SUM(F172:F177) -> 1 | G178: =SUM(G172:G177) -> 2700 | H178: =SUM(H172:H177) -> 1
B179: Total mà d'obra | F179: =F169+F178 -> 3 | H179: =H169+H178 -> 3 | I179: =SUM(I172:I177) -> 27000 | J179: =SUM(J172:J177) -> 0
B180: Edificis, maquinària i instal·lacions
B181: Maquinària | H181: Edificis
B182: Tipus, nom... | C182: Any | D182: Valor Compra | E182: Capital amortitzat | F182: Amortització anual | G182: Capital actual | H182: Tipus | I182: Superficie m2 | J182: Any | K182: Cost construcció | L182: Capital Amortitzat | M182: Amortització anual | N182: Capital actual
B184: Banyera Gili 12 Tm | C184: 2003 | D184: 9766.37 | E184: =IF(A_Enc-C184<AA_Maq,D184-G184,D184) -> 9766.37 | F184: =IF(A_Enc-C184<AA_Maq,D184*0.9/AA_Maq,0) -> 0 | G184: =IF(A_Enc-C184<AA_Maq,D184*(1-0.9*(A_Enc-C184)/AA_Maq),D184*0.1) -> 976.637 | H184: femer 700 m2 | J184: 2001 | K184: 25916.84 | L184: =IF(A_Enc-J184<AA_Edif,K184-N184,K184) -> 25916.84 | M184: =IF(A_Enc-J184<AA_Edif,K184*0.95/AA_Edif,0) -> 0 | N184: =IF(A_Enc-J184<AA_Edif,K184-((K184/AA_Edif)*(A_Enc-J184)),K184*0.05) -> 1295.842
B185: John Deere 6820 | C185: 2004 | D185: 52586.2 | E185: 52586.2 | F185: 0 | G185: 5258.62 | H185: 3 Sitjes prefabricats | J185: 2002 | K185: 31999.8 | L185: 30399.81 | M185: 1519.9905 | N185: 1599.99
B186: Compar RBT-600 | C186: 2005 | D186: 21721.27 | E186: 21721.27 | F186: 0 | G186: 2172.127 | H186: Nau de vedelles i pavimentar camins explotació | J186: 2002 | K186: 55630.74 | L186: 52849.203 | M186: 2642.46015 | N186: 2781.537
B187: Rampí krone 4m | C187: 2005 | D187: 3879 | E187: 3879 | F187: 0 | G187: 387.9 | H187: A | J187: 2010 | K187: 74194.49 | L187: 40806.9695 | M187: 3524.238275 | N187: 33387.5205
B188: sembradora 3m amazone | C188: 2008 | D188: 9210.37 | E188: 9210.37 | F188: 0 | G188: 921.037 | H188: B | J188: 2011 | K188: 20265 | L188: 10132.5 | M188: 962.5875 | N188: 10132.5
B189: Cassó pala | C189: 2011 | D189: 1074 | E189: 1074 | F189: 0 | G189: 107.4 | H189: C | J189: 2012 | K189: 17051.6 | L189: 7673.22 | M189: 809.951 | N189: 9378.38
B190: Tractor John deere 6430 amb pala davantera | C190: 2012 | D190: 60000 | E190: 48600 | F190: 5400 | G190: 11400 | H190: D | J190: 2013 | K190: 54260 | L190: 21704 | M190: 2577.35 | N190: 32556
E191: 0 | F191: 0 | G191: 0 | L191: 0 | M191: 0 | N191: 0
E192: 0 | F192: 0 | G192: 0 | L192: 0 | M192: 0 | N192: 0
E193: 0 | F193: 0 | G193: 0 | J193: Total | K193: =SUM(K184:K189) -> 225058.47 | L193: =SUM(L184:L192) -> 189482.5425 | M193: =SUM(M184:M192) -> 12036.57742 | N193: =SUM(N184:N189) -> 58575.7695
E194: 0 | F194: 0 | G194: 0 | H194: Equip de munyir i fred (instal·lacions) | L194: Capital amortitzat | M194: Amortització anual | N194: Cap. Actual
E195: 0 | F195: 0 | G195: 0 | H195: Maquinària | I195: Llocs | J195: Any | K195: Valor de compra
E196: 0 | F196: 0 | G196: 0 | H196: Màquina munyir | J196: 2010 | K196: =92034.3-18500 -> 73534.3 | L196: =IF(A_Enc-J196<AA_Frio,K196-N196,K196) -> 73534.3 | M196: =IF(A_Enc-J196<AA_Frio,K196*0.9/AA_Frio,0) -> 0 | N196: =IF(A_Enc-J196<AA_Frio,K196-((K196/AA_Frio)*(A_Enc-J196)),K196*0.1) -> 7353.43
E197: 0 | F197: 0 | G197: 0 | H197: A | J197: 2011 | K197: 3389.01 | L197: =IF(A_Enc-J197<AA_Frio,K197-N197,K197) -> 3389.01 | M197: =IF(A_Enc-J197<AA_Frio,K197*0.9/AA_Frio,0) -> 0 | N197: =IF(A_Enc-J197<AA_Frio,K197-((K197/AA_Frio)*(A_Enc-J197)),K197*0.1) -> 338.901
E198: 0 | F198: 0 | G198: 0 | H198: B | J198: 2012 | K198: 14095 | L198: =IF(A_Enc-J198<AA_Frio,K198-N198,K198) -> 12685.5 | M198: =IF(A_Enc-J198<AA_Frio,K198*0.9/AA_Frio,0) -> 1268.55 | N198: =IF(A_Enc-J198<AA_Frio,K198-((K198/AA_Frio)*(A_Enc-J198)),K198*0.1) -> 1409.5
E199: 0 | F199: 0 | G199: 0 | H199: C | J199: 2013 | K199: 54071.91 | L199: =IF(A_Enc-J199<AA_Frio,K199-N199,K199) -> 43257.528 | M199: =IF(A_Enc-J199<AA_Frio,K199*0.9/AA_Frio,0) -> 4866.4719 | N199: =IF(A_Enc-J199<AA_Frio,K199-((K199/AA_Frio)*(A_Enc-J199)),K199*0.1) -> 10814.382
E200: 0 | F200: 0 | G200: 0 | H200: Fred | I200: Litres | J200: Any | K200: Valor de compra | L200: =SUM(L196:L199) -> 132866.338 | M200: =SUM(M196:M199) -> 6135.0219 | N200: =SUM(N196:N199) -> 19916.213
E201: 0 | F201: 0 | G201: 0 | H201: Tanc llet | J201: 2010 | K201: 18500 | L201: =IF(A_Enc-J201<AA_Frio,K201-N201,K201) -> 18500 | M201: =IF(A_Enc-J201<AA_Frio,K201*0.9/AA_Frio,0) -> 0 | N201: =IF(A_Enc-J201<AA_Frio,K201-((K201/AA_Frio)*(A_Enc-J201)),K201*0.1) -> 1850
E202: 0 | F202: 0 | G202: 0 | L202: =IF(A_Enc-J202<AA_Frio,K202-N202,K202) -> 0 | M202: =IF(A_Enc-J202<AA_Frio,K202*0.9/AA_Frio,0) -> 0 | N202: =IF(A_Enc-J202<AA_Frio,K202-((K202/AA_Frio)*(A_Enc-J202)),K202*0.1) -> 0
C203: Total | D203: =SUM(D184:D202) -> 158237.21 | E203: =SUM(E184:E202) -> 146837.21 | F203: =SUM(F184:F202) -> 5400 | G203: =SUM(G184:G202) -> 21223.721 | L203: =IF(A_Enc-J203<AA_Frio,K203-N203,K203) -> 0 | M203: =IF(A_Enc-J203<AA_Frio,K203*0.9/AA_Frio,0) -> 0 | N203: =IF(A_Enc-J203<AA_Frio,K203-((K203/AA_Frio)*(A_Enc-J203)),K203*0.1) -> 0
J204: Total | K204: =SUM(K196:K203) -> 163590.22 | L204: =SUM(L201:L203)+L200 -> 151366.338 | M204: =SUM(M201:M203)+M200 -> 6135.0219 | N204: =SUM(N201:N203)+N200 -> 21766.213
B205: Despeses anuals vaquí de llet no consignades anteriorment
B206: Despeses variables | E206: Despeses fixes
B207: Carburants i lubricants | C207: 20384.14 | E207: Coservació i reparació maquinària | F207: 13569.64
B208: Lloguer maquinària | C208: 31486.79 | E208: Conservació i reparació edificis | F208: 1992.22
B209: Veterinari | C209: 9197.84 | E209: Contribucions/impostos | F209: 416.84
B210: Medicines i productes veterinaris | C210: 6027.26 | E210: Interessos préstecs i comissions | F210: 8970.3
B211: Jaç/llits | C211: 11409.19 | E211: Assessories i serveis tècnics | F211: 0
B212: Material divers | C212: 4224.23 | E212: Seguretat social familiar | F212: 8598.66
B213: Llum | C213: 6959.82 | E213: Arrendament sòl agrícola | F213: 9325
B214: Telèfon | C214: 0 | E214: Arrendament edificis | F214: 4200
B215: Detergents i desinfectants | C215: 3027.12 | E215: Altres arrendaments | F215: 1260
B216: Consum aigua | C216: 4489.25 | E216: Assegurances vaques | F216: 5757.03
B217: Inseminacions | C217: 3166.4 | E217: Assegurances maquinària | F217: 775.95
B218: Sous eventuals (inclosa SS) | C218: 0 | E218: Assegurances edificis | F218: 1159.72
E219: Assegurances collites | F219: 0
E220: Control lleter | F220: 1378.35
E221: Administració i gestoria | F221: 1542.32
E222: Assegurances diverses | F222: 329.72
B228: Ingressos de la llet i altres
B229: Destinació de la llet | F229: Altres ingressos
B230: Concepte | C230: L | D230: ct €/l | E230: Total € | F230: Concepte | G230: Total €
B231: Venda llet | C231: 1007718 | D231: =320.971670645955/1000 -> 0.3209716706 | E231: =C231*D231 -> 323448.93 | F231: Venda fems | G231: 0
B232: Venda al detall | E232: 0 | F232: Subvencions | G232: 65541.849
E233: 0 | F233: Indemnitzacions | G233: 0
E234: 0
E235: 0
E236: 0 | F236: Venda vaques, vedelles i toros | G236: 15568.53
B237: Consum familiar real | C237: 0 | E237: =IF(D231<100,(C237*D231),(C237*(D231/C231))) -> 0 | F237: Venda vedells i vedelles | G237: 5120
B238: Consum familiar estimat | C238: =IF(C237>0,0,H252*365) -> 1095 | E238: =IF(D231<100,(C238*D231),(C238*(D231/C231))) -> 351.4639794 | F238: Compra vaques, vedelles i toros | G238: 0
B239: Consum recria | C239: =IF(C159="",0, IF(P159="",Llet_Mam*Dies_Mam*L77,P159)) -> 14378 | F239: Compra vedells i vedelles | G239: 0
... 49 more rows

Sheet ResultatsTècnicsEconòmics
B1: concepte | C1: Valores
B3: C.autonoma | C3: =EntradaDadesExplotació!F24 -> AAAAA
B4: Nom o nombre explotació | C4: =EntradaDadesExplotació!H27 -> BBBB
B5: Província | C5: =EntradaDadesExplotació!F27 -> BBB
B6: Comarca | C6: =EntradaDadesExplotació!D27 -> BB
B7: Municipi | C7: =EntradaDadesExplotació!B27 -> B
B8: Control lleter | C8: =EntradaDadesExplotació!H28 -> Sí
A9: ST | B9: Has totals | C9: =IF(EntradaDadesExplotació!H33="","-",EntradaDadesExplotació!H33) -> 75
B10: % Sup pròpia | C10: =IF(EntradaDadesExplotació!H33=0,0,(EntradaDadesExplotació!B33+EntradaDadesExplotació!C33)/(EntradaDadesExplotació!H33)) -> 1
A11: SF | B11: Has de farratges | C11: =EntradaDadesExplotació!E38+EntradaDadesExplotació!F38 -> 75
A12: Sllet | B12: Has a llet | C12: =SUM(C11:C11) -> 75
B13: % regadiu | C13: =EntradaDadesExplotació!F52/EntradaDadesExplotació!G52 -> 0.3333333333
A14: Vi | B14: vaques inici | C14: =EntradaDadesExplotació!C75 -> 111
A15: Vf | B15: vaques final | C15: =EntradaDadesExplotació!J75 -> 121
A16: VM | B16: Nº vaques mitjana | C16: =EntradaDadesExplotació!L75 -> 116
B17: % primer part | C17: =EntradaDadesExplotació!M72 -> 0.349137931
B18: % eixutes | C18: =EntradaDadesExplotació!M76 -> 0
A19: Tendencia | B19: (v2-v1)*100/v1 | C19: =EntradaDadesExplotació!I103 -> 0.09009009009
A20: UBM | B20: UBM mitjana | C20: =EntradaDadesExplotació!N75+EntradaDadesExplotació!M94+EntradaDadesExplotació!M101 -> 163.5
A21: UTA | B21: Uta_totals | C21: =EntradaDadesExplotació!F179 -> 3
A22: UTAf | B22: Uta_familiar | C22: =EntradaDadesExplotació!F169 -> 2
A23: UTAa | B23: Uta_Assalariada | C23: =UTA-UTAf -> 1
A24: Pfix | B24: Persones fixes totals | C24: =EntradaDadesExplotació!H179 -> 3
A25: Pfixf | B25: Persones fixes familiars | C25: =EntradaDadesExplotació!H169 -> 2
A26: Horesf | B26: hores familiar declarades | C26: =EntradaDadesExplotació!G169 -> 5595
A27: HoresAss | B27: hores assal total | C27: =EntradaDadesExplotació!G178 -> 2700
A28: CapT | B28: Capital Total | C28: =SUM(C29:C33) -> 327312.5685
A29: CapE | B29: Capital edificis | C29: =EntradaDadesExplotació!N193 -> 58575.7695
A30: CapM | B30: Capital maquinària | C30: =EntradaDadesExplotació!G203 -> 21223.721
A31: CapI | B31: Capital instal·lacions munyir i fred | C31: =EntradaDadesExplotació!N204 -> 21766.213
A32: CapB | B32: Capital bestiar | C32: =IF(EntradaDadesExplotació!N94>0,EntradaDadesExplotació!O75+EntradaDadesExplotació!N94+EntradaDadesExplotació!N101,EntradaDadesExplotació!O75+EntradaDadesExplotació!O79+EntradaDadesExplotació!N101) -> 201716.675
A33: CapC | B33: Capital circulant | C33: =EntradaDadesExplotació!P62+EntradaDadesExplotació!G125+EntradaDadesExplotació!C211 -> 24030.19
A34: VM_ha | B34: vaques mitjana/ha llet | C34: =VM/Sllet -> 1.546666667
A35: UBM_ha | B35: UBM vaquí llet/ha llet | C35: =UBM/Sllet -> 2.18
A36: VM_UTA | B36: vaques mitjana/uta totals | C36: =VM/C21 -> 38.66666667
A37: CT_VM | B37: Capital total/vaques mitjanes | C37: =CapT/VM -> 2821.660073
A38: CT_UTA | B38: Capital/uta | C38: =CapT/C21 -> 109104.1895
A39: PlVCf | B39: Llet venuda + consum familiar | C39: =EntradaDadesExplotació!C241+EntradaDadesExplotació!C238 -> 1008813
A40: PlR | B40: Llet reempleada | C40: =EntradaDadesExplotació!C239 -> 14378
A41: PlCf | B41: Consum familiar | C41: =IF(EntradaDadesExplotació!C237>0,EntradaDadesExplotació!C237,EntradaDadesExplotació!C238) -> 1095
A42: Pl | B42: llet produïda | C42: =EntradaDadesExplotació!C240 -> 1023191
A43: Pl_VM | B43: llet produïda per vaca mitjana | C43: =Pl/VM -> 8820.612069
A44: Pinso | B44: Total de pinso, 90% MS, a vaques | C44: =EntradaDadesExplotació!P144*EntradaDadesExplotació!Q144/ResultatsTècnicsEconòmics!D44 -> 451414.6247 | D44: 0.9
A45: Pinso_VM | B45: Total de pinso de vaca per vaca mitjana | C45: =Pinso/VM -> 3891.505385
A46: Pinso_l | B46: consum de pinso de vaca per litre | C46: =Pinso/Pl -> 0.4411831464
A47: Preu | B47: € litre llet venuda | C47: =EntradaDadesExplotació!D241 -> 0.3213204428
A48: PreuCo | B48: €/Kg concentrat comprat vaques | C48: =IF(F48="","",EntradaDadesExplotació!G144/ResultatsTècnicsEconòmics!F48) -> 0.3385688035 | D48: =SUMPRODUCT(EntradaDadesExplotació!E129:E143,EntradaDadesExplotació!F129:F143) -> 461634.448 | E48: =D48/SUM(EntradaDadesExplotació!E129:E143) -> 0.88 | F48: =IF(D48=0,"",D48*E48/D44) -> 451375.9047
A49: PreuCoR | B49: €/Kg concentrat recria | C49: =IF(F49="","",EntradaDadesExplotació!G158/ResultatsTècnicsEconòmics!F49) ->  | D49: =SUMPRODUCT(EntradaDadesExplotació!E149:E157,EntradaDadesExplotació!F149:F157) -> 0 | E49: =IF(D49=0,"",D49/SUM(EntradaDadesExplotació!E149:E157)) ->  | F49: =IF(D49=0,"",D49*E49/D44) -> 
A50: Cost_ha | B50: Cost cultius per ha | C50: =EntradaDadesExplotació!P62/Sllet -> 168.28
A51: IT | B51: Ingressos totals | C51: =SUM(C52:C60) -> 410444.8939
A52: Il | B52: Ingressos per llet venuda | C52: =PlVCf*Preu -> 324152.2399
A53: Ived | B53: Ingressos per venda neta de vedells | C53: =EntradaDadesExplotació!G237-EntradaDadesExplotació!G239 -> 5120
B54: Ingressos per venda neta resta animals | C54: =EntradaDadesExplotació!G236-EntradaDadesExplotació!G238 -> 15568.53
B55: =EntradaDadesExplotació!F231 -> Venda fems | C55: =EntradaDadesExplotació!G231 -> 0
B56: =EntradaDadesExplotació!F232 -> Subvencions | C56: =EntradaDadesExplotació!G232 -> 65541.849
B57: =EntradaDadesExplotació!F233 -> Indemnitzacions | C57: =EntradaDadesExplotació!G233 -> 0
B58: =IF(EntradaDadesExplotació!F234="","",EntradaDadesExplotació!F234) ->  | C58: =EntradaDadesExplotació!G234 -> 0
B59: =IF(EntradaDadesExplotació!F235="","",EntradaDadesExplotació!F235) ->  | C59: =EntradaDadesExplotació!G235 -> 0
B60: Ingressos per variació de inventari animal | C60: =EntradaDadesExplotació!P75+EntradaDadesExplotació!O94+EntradaDadesExplotació!N101 -> 62.275
A61: CV | B61: Costos_Variables | C61: =C62+C65+C71+C74+C75+C76+C77+C78+C79+C80+C81+C82+C83+C84+C85+C86+C87+C88+C89+C90+C91 -> 243099.9494
A62: Prod_comp | B62: Productes comprats per a l'alimentació | C62: =SUM(C63:C64) -> 152821.8
B63: Farratges comprats | C63: =EntradaDadesExplotació!G125 -> 0
B64: Concentrats | C64: =EntradaDadesExplotació!G144+EntradaDadesExplotació!G158 -> 152821.8
B65: Costos parcel·les | C65: =EntradaDadesExplotació!P62 -> 12621
B66: Llavors | C66: =EntradaDadesExplotació!P57 -> 4000
B67: Adobs | C67: =EntradaDadesExplotació!P58 -> 3200
B68: Tractaments | C68: =EntradaDadesExplotació!P59 -> 2100
B69: Plàstics i conservants | C69: =EntradaDadesExplotació!P60 -> 1321
B70: Altres (aigua reg, etc.) | C70: =EntradaDadesExplotació!P61 -> 2000
B71: Maquinària | C71: =C72+C73 -> 51870.93
B72: Carburants i lubricants | C72: =EntradaDadesExplotació!C207 -> 20384.14
B73: Lloguer maquinària | C73: =EntradaDadesExplotació!C208 -> 31486.79
B74: Veterinari | C74: =EntradaDadesExplotació!C209 -> 9197.84
B75: Medicines i productes veterinaris | C75: =EntradaDadesExplotació!C210 -> 6027.26
B76: Jaç/llits | C76: =EntradaDadesExplotació!C211 -> 11409.19
B77: Material divers | C77: =EntradaDadesExplotació!C212 -> 4224.23
B78: Llum | C78: =EntradaDadesExplotació!C213 -> 6959.82
B79: Telèfon | C79: =EntradaDadesExplotació!C214 -> 0
B80: Detergents i desinfectants | C80: =EntradaDadesExplotació!C215 -> 3027.12
B81: Consum aigua | C81: =EntradaDadesExplotació!C216 -> 4489.25
B82: Inseminacions | C82: =EntradaDadesExplotació!C217 -> 3166.4
B83: Sous eventuals (inclosa SS) | C83: =EntradaDadesExplotació!C218 -> 0
B84: =IF(EntradaDadesExplotació!B219="","",EntradaDadesExplotació!B219) ->  | C84: =EntradaDadesExplotació!C219 -> 0
B85: =IF(EntradaDadesExplotació!B220="","",EntradaDadesExplotació!B220) ->  | C85: =EntradaDadesExplotació!C220 -> 0
B86: =IF(EntradaDadesExplotació!B221="","",EntradaDadesExplotació!B221) ->  | C86: =EntradaDadesExplotació!C221 -> 0
B87: =IF(EntradaDadesExplotació!B222="","",EntradaDadesExplotació!B222) ->  | C87: =EntradaDadesExplotació!C222 -> 0
B88: =IF(EntradaDadesExplotació!B223="","",EntradaDadesExplotació!B223) ->  | C88: =EntradaDadesExplotació!C223 -> 0
B89: =IF(EntradaDadesExplotació!B226="","",EntradaDadesExplotació!B226) ->  | C89: =EntradaDadesExplotació!C226 -> 0
B90: =IF(EntradaDadesExplotació!B227="","",EntradaDadesExplotació!B227) ->  | C90: =EntradaDadesExplotació!C227 -> 0
B91: Variació inventari productes alimentaris | C91: =-(EntradaDadesExplotació!S125+EntradaDadesExplotació!S144+EntradaDadesExplotació!S158) -> -22714.89062
B92: Costos fixos | C92: =SUM(C93:C113) -> 109847.3493
B93: Amortització anual maquinària | C93: =EntradaDadesExplotació!F203 -> 5400
B94: Amortització anual edificacions | C94: =EntradaDadesExplotació!M193 -> 12036.57742
B95: Amortització instal·lacions | C95: =EntradaDadesExplotació!M204 -> 6135.0219
B96: =EntradaDadesExplotació!E207 -> Coservació i reparació maquinària | C96: =EntradaDadesExplotació!F207 -> 13569.64
B97: =EntradaDadesExplotació!E208 -> Conservació i reparació edificis | C97: =EntradaDadesExplotació!F208 -> 1992.22
B98: =EntradaDadesExplotació!E209 -> Contribucions/impostos | C98: =EntradaDadesExplotació!F209 -> 416.84
B99: =EntradaDadesExplotació!E210 -> Interessos préstecs i comissions | C99: =EntradaDadesExplotació!F210 -> 8970.3
B100: =EntradaDadesExplotació!E211 -> Assessories i serveis tècnics | C100: =EntradaDadesExplotació!F211 -> 0
B101: Sous fixos | C101: =EntradaDadesExplotació!I179 -> 27000
B102: =EntradaDadesExplotació!E212 -> Seguretat social familiar | C102: =EntradaDadesExplotació!F212 -> 8598.66
B103: =EntradaDadesExplotació!E213 -> Arrendament sòl agrícola | C103: =EntradaDadesExplotació!F213 -> 9325
B104: =EntradaDadesExplotació!E214 -> Arrendament edificis | C104: =EntradaDadesExplotació!F214 -> 4200
B105: =EntradaDadesExplotació!E215 -> Altres arrendaments | C105: =EntradaDadesExplotació!F215 -> 1260
B106: =EntradaDadesExplotació!E216 -> Assegurances vaques | C106: =EntradaDadesExplotació!F216 -> 5757.03
B107: =EntradaDadesExplotació!E217 -> Assegurances maquinària | C107: =EntradaDadesExplotació!F217 -> 775.95
B108: =EntradaDadesExplotació!E218 -> Assegurances edificis | C108: =EntradaDadesExplotació!F218 -> 1159.72
B109: =EntradaDadesExplotació!E219 -> Assegurances collites | C109: =EntradaDadesExplotació!F219 -> 0
B110: =EntradaDadesExplotació!E220 -> Control lleter | C110: =EntradaDadesExplotació!F220 -> 1378.35
B111: =EntradaDadesExplotació!E221 -> Administració i gestoria | C111: =EntradaDadesExplotació!F221 -> 1542.32
B112: =IF(EntradaDadesExplotació!E222="","",EntradaDadesExplotació!E222) -> Assegurances diverses | C112: =EntradaDadesExplotació!F222 -> 329.72
B113: =IF(EntradaDadesExplotació!E226="","",EntradaDadesExplotació!E226) ->  | C113: =EntradaDadesExplotació!F226 -> 0
B114: Costos_Oportunitat | C114: =(C115+C116+C117) -> 77472.10367
B115: Renda de la terra | C115: =(EntradaDadesExplotació!B33*EntradaDadesExplotació!C66)+(EntradaDadesExplotació!C33*EntradaDadesExplotació!D66) -> 12800
B116: Mà d’obra familiar | C116: =UTAf*Hores_UTA*Preu_h_f -> 63004
B117: Interès capital propi | C117: =(EntradaDadesExplotació!O75+EntradaDadesExplotació!N94+EntradaDadesExplotació!N101)*Int_bestiar+EntradaDadesExplotació!N193*Int_Edif+EntradaDadesExplotació!G203*Int_Maq+EntradaDadesExplotació!N204*Int_Frio+(3/12)*C33*Int_Cap_Cir -> 1668.103668
B118: Costos totals (sense incloure costos d'oportunitat) | C118: =C92+C61 -> 352947.2987
B119: Costos totals (Incloent costos d'oportunitat) | C119: =C118+C114 -> 430419.4024
B120: Marge brut | C120: =C51-C61 -> 167344.9445
B121: Marge net | C121: =MB-C92 -> 57497.59516
B122: Benefici | C122: =MN-C114 -> -19974.50851
B123: RUT (Renda Unitària del treball) | C123: =(MN+C102+C101)/C21 -> 31032.08505
B124: =B51 -> Ingressos totals | C124: =IT/Pl -> 0.4011420095
B125: Ingressos per llet venuda | C125: =C52/Pl -> 0.3168052102
B126: Ingressos per venda neta de vedells | C126: 0.005003953319
B127: Ingressos per venda neta resta animals | C127: 0.01521566355
B128: Venda fems | C128: 0
B129: Subvencions | C129: 0.06405631891
B130: Indemnitzacions | C130: 0
C131: 0
C132: 0
B133: Ingressos per variació de inventari animal | C133: 6.086351424e-05
B134: Costos_Variables | C134: =CV/Pl -> 0.2375899997
B135: Productes comprats per a l'alimentació | C135: =Prod_comp/Pl -> 0.1493580377
B136: Farratges comprats | C136: =C63/Pl -> 0
B137: Concentrats | C137: 0.1493580377
B138: Costos parcel·les | C138: 0.0123349404
B139: Llavors | C139: 0.00390933853
B140: Adobs | C140: 0.003127470824
B141: Tractaments | C141: 0.002052402728
B142: Plàstics i conservants | C142: 0.00129105905
B143: Altres (aigua reg, etc.) | C143: 0.001954669265
B144: Maquinària | C144: 0.05069525631
B145: Carburants i lubricants | C145: 0.01992212598
B146: Lloguer maquinària | C146: 0.03077313033
B147: Veterinari | C147: 0.008989367577
B148: Medicines i productes veterinaris | C148: 0.005890649937
B149: Jaç/llits | C149: 0.01115059652
B150: Material divers | C150: 0.004128486275
B151: Llum | C151: 0.006802073122
B152: Telèfon | C152: 0
B153: Detergents i desinfectants | C153: 0.002958509213
B154: Consum aigua | C154: 0.004387499499
B155: Inseminacions | C155: 0.00309463238
B156: Sous eventuals (inclosa SS) | C156: 0
C157: 0
C158: 0
C159: 0
C160: 0
C161: 0
C162: 0
C163: 0
B164: Variació inventari productes alimentaris | C164: -0.02220004927
B165: Costos fixos | C165: =CF/Pl -> 0.1073576188
B166: Amortització anual maquinària | C166: =C93/Pl -> 0.005277607016
B167: =B94 -> Amortització anual edificacions | C167: 0.01176376397
B168: Amortització instal·lacions | C168: 0.005995969374
B169: =B96 -> Coservació i reparació maquinària | C169: 0.01326207912
B170: Conservació i reparació edificis | C170: 0.001947065602
B171: Contribucions/impostos | C171: 0.0004073921682
B172: Interessos préstecs i comissions | C172: 0.008766984854
B173: Assessories i serveis tècnics | C173: 0
B174: Sous fixos | C174: 0.02638803508
B175: Seguretat social familiar | C175: 0.008403768211
B176: Arrendament sòl agrícola | C176: 0.009113645448
B177: Arrendament edificis | C177: 0.004104805457
B178: Altres arrendaments | C178: 0.001231441637
B179: Assegurances vaques | C179: 0.0056265448
B180: Assegurances maquinària | C180: 0.0007583628081
B181: Assegurances edificis | C181: 0.00113343452
B182: Assegurances collites | C182: 0
B183: Control lleter | C183: 0.001347109191
B184: Administració i gestoria | C184: 0.00150736275
B185: Assegurances diverses | C185: 0.000322246775
C186: 0
B187: Costos_Oportunitat | C187: =CO/Pl -> 0.07571616997
B188: Renda de la terra | C188: =C115/Pl -> 0.0125098833
B189: Mà d’obra familiar | C189: 0.06157599119
B190: Interès capital propi | C190: 0.001630295485
B191: Costos totals (sense incloure costos d'oportunitat) | C191: 0.3449476185
B192: Costos totals (Incloent costos d'oportunitat) | C192: 0.4206637885
B193: Marge brut | C193: 0.1635520098
B194: Marge net | C194: 0.05619439103
B195: Benefici | C195: -0.01952177894
B196: RUT (Renda Unitària del treball) | C196: 0.03032873144
B197: Llindar rendibilitat MN | C197: =C191-(C124-C125) -> 0.2606108192
B198: Llindar rendibilitat B | C198: =C192-(C124-C125) -> 0.3363269892
B199: =IF(C199="","","Maquinària") -> Maquinària | C199: =IF(EntradaDadesExplotació!B184="","",EntradaDadesExplotació!B184) -> Banyera Gili 12 Tm
B200: =IF(C200="","","Maquinària") -> Maquinària | C200: =IF(EntradaDadesExplotació!B185="","",EntradaDadesExplotació!B185) -> John Deere 6820
B201: Maquinària | C201: =IF(EntradaDadesExplotació!B186="","",EntradaDadesExplotació!B186) -> Compar RBT-600
... 92 more rows

Sheet ResultatsGrupGestió
A1: concepte | B1: Enquestes | C1: min | D1: max | E1: mitjana
B2: =COUNTA($F4:$GI4) -> 1
A3: =ResultatsTècnicsEconòmics!B3 -> C.autonoma | GH3: AAAAA
A4: =ResultatsTècnicsEconòmics!B4 -> Nom o nombre explotació | B4: Casos | GH4: BBBB
A5: =ResultatsTècnicsEconòmics!B5 -> Província | GH5: BBB
A6: =ResultatsTècnicsEconòmics!B6 -> Comarca | GH6: BB
A7: =ResultatsTècnicsEconòmics!B7 -> Municipi | GH7: B
A8: =ResultatsTècnicsEconòmics!B8 -> Control lleter | B8: =COUNTA($F8:$GI8) -> 1 | GH8: Sí
A9: =ResultatsTècnicsEconòmics!B9 -> Has totals | B9: 1 | C9: =MIN($F9:$GI9) -> 75 | D9: =MAX($F9:$GI9) -> 75 | E9: =SUMIF($F9:$GI9,">0")/$B$2 -> 75 | GH9: 75
A10: =ResultatsTècnicsEconòmics!B10 -> % Sup pròpia | B10: 1 | C10: 1 | D10: 1 | E10: 1 | GH10: 1
A11: =ResultatsTècnicsEconòmics!B11 -> Has de farratges | B11: 1 | C11: 75 | D11: 75 | E11: 75 | GH11: 75
A12: =ResultatsTècnicsEconòmics!B12 -> Has a llet | B12: 1 | C12: 75 | D12: 75 | E12: 75 | GH12: 75
A13: =ResultatsTècnicsEconòmics!B13 -> % regadiu | B13: 1 | C13: 0.3333333333 | D13: 0.3333333333 | E13: 0.3333333333 | GH13: 0.3333333333
A14: =ResultatsTècnicsEconòmics!B14 -> vaques inici | B14: 1 | C14: 111 | D14: 111 | E14: 111 | GH14: 111
A15: =ResultatsTècnicsEconòmics!B15 -> vaques final | B15: 1 | C15: 121 | D15: 121 | E15: 121 | GH15: 121
A16: =ResultatsTècnicsEconòmics!B16 -> Nº vaques mitjana | B16: 1 | C16: 116 | D16: 116 | E16: 116 | GH16: 116
A17: =ResultatsTècnicsEconòmics!B17 -> % primer part | B17: 1 | C17: 0.349137931 | D17: 0.349137931 | E17: 0.349137931 | GH17: 0.349137931
A18: =ResultatsTècnicsEconòmics!B18 -> % eixutes | B18: 1 | C18: 0 | D18: 0 | E18: 0 | GH18: 0
A19: =ResultatsTècnicsEconòmics!B19 -> (v2-v1)*100/v1 | B19: 1 | C19: 0.09009009009 | D19: 0.09009009009 | E19: 0.09009009009 | GH19: 0.09009009009
A20: =ResultatsTècnicsEconòmics!B20 -> UBM mitjana | B20: 1 | C20: 163.5 | D20: 163.5 | E20: 163.5 | GH20: 163.5
A21: =ResultatsTècnicsEconòmics!B21 -> Uta_totals | B21: 1 | C21: 3 | D21: 3 | E21: 3 | GH21: 3
A22: =ResultatsTècnicsEconòmics!B22 -> Uta_familiar | B22: 1 | C22: 2 | D22: 2 | E22: 2 | GH22: 2
A23: =ResultatsTècnicsEconòmics!B23 -> Uta_Assalariada | B23: 1 | C23: 1 | D23: 1 | E23: 1 | GH23: 1
A24: =ResultatsTècnicsEconòmics!B24 -> Persones fixes totals | B24: 1 | C24: 3 | D24: 3 | E24: 3 | GH24: 3
A25: =ResultatsTècnicsEconòmics!B25 -> Persones fixes familiars | B25: 1 | C25: 2 | D25: 2 | E25: 2 | GH25: 2
A26: =ResultatsTècnicsEconòmics!B26 -> hores familiar declarades | B26: 1 | C26: 5595 | D26: 5595 | E26: 5595 | GH26: 5595
A27: =ResultatsTècnicsEconòmics!B27 -> hores assal total | B27: 1 | C27: 2700 | D27: 2700 | E27: 2700 | GH27: 2700
A28: =ResultatsTècnicsEconòmics!B28 -> Capital Total | B28: 1 | C28: 310929.823 | D28: 310929.823 | E28: 310929.823 | GH28: 310929.823
A29: =ResultatsTècnicsEconòmics!B29 -> Capital edificis | B29: 1 | C29: 53000.215 | D29: 53000.215 | E29: 53000.215 | GH29: 53000.215
A30: =ResultatsTècnicsEconòmics!B30 -> Capital maquinària | B30: 1 | C30: 15823.721 | D30: 15823.721 | E30: 15823.721 | GH30: 15823.721
A31: =ResultatsTècnicsEconòmics!B31 -> Capital instal·lacions munyir i fred | B31: 1 | C31: 16359.022 | D31: 16359.022 | E31: 16359.022 | GH31: 16359.022
A32: =ResultatsTècnicsEconòmics!B32 -> Capital bestiar | B32: 1 | C32: 201716.675 | D32: 201716.675 | E32: 201716.675 | GH32: 201716.675
A33: =ResultatsTècnicsEconòmics!B33 -> Capital circulant | B33: 1 | C33: 24030.19 | D33: 24030.19 | E33: 24030.19 | GH33: 24030.19
A34: =ResultatsTècnicsEconòmics!B34 -> vaques mitjana/ha llet | B34: 1 | C34: 1.546666667 | D34: 1.546666667 | E34: 1.546666667 | GH34: 1.546666667
A35: =ResultatsTècnicsEconòmics!B35 -> UBM vaquí llet/ha llet | B35: 1 | C35: 2.18 | D35: 2.18 | E35: 2.18 | GH35: 2.18
A36: =ResultatsTècnicsEconòmics!B36 -> vaques mitjana/uta totals | B36: 1 | C36: 38.66666667 | D36: 38.66666667 | E36: 38.66666667 | GH36: 38.66666667
A37: =ResultatsTècnicsEconòmics!B37 -> Capital total/vaques mitjanes | B37: 1 | C37: 2680.429509 | D37: 2680.429509 | E37: 2680.429509 | GH37: 2680.429509
A38: =ResultatsTècnicsEconòmics!B38 -> Capital/uta | B38: 1 | C38: 103643.2743 | D38: 103643.2743 | E38: 103643.2743 | GH38: 103643.2743
A39: =ResultatsTècnicsEconòmics!B39 -> Llet venuda + consum familiar | B39: 1 | C39: 1008813 | D39: 1008813 | E39: 1008813 | GH39: 1008813
A40: =ResultatsTècnicsEconòmics!B40 -> Llet reempleada | B40: 1 | C40: 14378 | D40: 14378 | E40: 14378 | GH40: 14378
A41: =ResultatsTècnicsEconòmics!B41 -> Consum familiar | B41: 1 | C41: 1095 | D41: 1095 | E41: =SUMIF($F41:$GI41,">0")/$B$2 -> 1095 | GH41: 1095
A42: =ResultatsTècnicsEconòmics!B42 -> llet produïda | B42: 1 | C42: 1023191 | D42: 1023191 | E42: 1023191 | GH42: 1023191
A43: =ResultatsTècnicsEconòmics!B43 -> llet produïda per vaca mitjana | B43: 1 | C43: 8820.612069 | D43: 8820.612069 | E43: 8820.612069 | GH43: 8820.612069
A44: =ResultatsTècnicsEconòmics!B44 -> Total de pinso, 90% MS, a vaques | B44: 1 | C44: 451414.6247 | D44: 451414.6247 | E44: 451414.6247 | GH44: 451414.6247
A45: =ResultatsTècnicsEconòmics!B45 -> Total de pinso de vaca per vaca mitjana | B45: 1 | C45: 3891.505385 | D45: 3891.505385 | E45: 3891.505385 | GH45: 3891.505385
A46: =ResultatsTècnicsEconòmics!B46 -> consum de pinso de vaca per litre | B46: 1 | C46: 0.4411831464 | D46: 0.4411831464 | E46: 0.4411831464 | GH46: 0.4411831464
A47: =ResultatsTècnicsEconòmics!B47 -> € litre llet venuda | B47: 1 | C47: 0.3213204428 | D47: 0.3213204428 | E47: 0.3213204428 | GH47: 0.3213204428
A48: =ResultatsTècnicsEconòmics!B48 -> €/Kg concentrat comprat vaques | B48: 1 | C48: 0.3385688035 | D48: 0.3385688035 | E48: 0.3385688035 | GH48: 0.3385688035
A49: =ResultatsTècnicsEconòmics!B49 -> €/Kg concentrat recria | B49: 1 | C49: 0 | D49: 0 | E49: 0
A50: =ResultatsTècnicsEconòmics!B50 -> Cost cultius per ha | B50: 1 | C50: 168.28 | D50: 168.28 | E50: 168.28 | GH50: 168.28
A51: =ResultatsTècnicsEconòmics!B51 -> Ingressos totals | B51: 1 | C51: 410444.8939 | D51: 410444.8939 | E51: 410444.8939 | GH51: 410444.8939
A52: =ResultatsTècnicsEconòmics!B52 -> Ingressos per llet venuda | B52: 1 | C52: 324152.2399 | D52: 324152.2399 | E52: 324152.2399 | GH52: 324152.2399
A53: =ResultatsTècnicsEconòmics!B53 -> Ingressos per venda neta de vedells | B53: 1 | C53: 5120 | D53: 5120 | E53: 5120 | GH53: 5120
A54: =ResultatsTècnicsEconòmics!B54 -> Ingressos per venda neta resta animals | B54: 1 | C54: 15568.53 | D54: 15568.53 | E54: 15568.53 | GH54: 15568.53
A55: =ResultatsTècnicsEconòmics!B55 -> Venda fems | B55: 1 | C55: 0 | D55: 0 | E55: 0 | GH55: 0
A56: =ResultatsTècnicsEconòmics!B56 -> Subvencions | B56: 1 | C56: 65541.849 | D56: 65541.849 | E56: 65541.849 | GH56: 65541.849
A57: =ResultatsTècnicsEconòmics!B57 -> Indemnitzacions | B57: 1 | C57: 0 | D57: 0 | E57: 0 | GH57: 0
A58: =ResultatsTècnicsEconòmics!B58 ->  | B58: 1 | C58: 0 | D58: 0 | E58: 0 | GH58: 0
A59: =ResultatsTècnicsEconòmics!B59 ->  | B59: 1 | C59: 0 | D59: 0 | E59: 0 | GH59: 0
A60: =ResultatsTècnicsEconòmics!B60 -> Ingressos per variació de inventari animal | B60: 1 | C60: 62.275 | D60: 62.275 | E60: 62.275 | GH60: 62.275
A61: =ResultatsTècnicsEconòmics!B61 -> Costos_Variables | B61: 1 | C61: 243099.9494 | D61: 243099.9494 | E61: 243099.9494 | GH61: 243099.9494
A62: =ResultatsTècnicsEconòmics!B62 -> Productes comprats per a l'alimentació | B62: 1 | C62: 152821.8 | D62: 152821.8 | E62: 152821.8 | GH62: 152821.8
A63: =ResultatsTècnicsEconòmics!B63 -> Farratges comprats | B63: 1 | C63: 0 | D63: 0 | E63: 0 | GH63: 0
A64: =ResultatsTècnicsEconòmics!B64 -> Concentrats | B64: 1 | C64: 152821.8 | D64: 152821.8 | E64: 152821.8 | GH64: 152821.8
A65: =ResultatsTècnicsEconòmics!B65 -> Costos parcel·les | B65: 1 | C65: 12621 | D65: 12621 | E65: 12621 | GH65: 12621
A66: =ResultatsTècnicsEconòmics!B66 -> Llavors | B66: 1 | C66: 4000 | D66: 4000 | E66: 4000 | GH66: 4000
A67: =ResultatsTècnicsEconòmics!B67 -> Adobs | B67: 1 | C67: 3200 | D67: 3200 | E67: 3200 | GH67: 3200
A68: =ResultatsTècnicsEconòmics!B68 -> Tractaments | B68: 1 | C68: 2100 | D68: 2100 | E68: 2100 | GH68: 2100
A69: =ResultatsTècnicsEconòmics!B69 -> Plàstics i conservants | B69: 1 | C69: 1321 | D69: 1321 | E69: 1321 | GH69: 1321
A70: =ResultatsTècnicsEconòmics!B70 -> Altres (aigua reg, etc.) | B70: 1 | C70: 2000 | D70: 2000 | E70: 2000 | GH70: 2000
A71: =ResultatsTècnicsEconòmics!B71 -> Maquinària | B71: 1 | C71: 51870.93 | D71: 51870.93 | E71: 51870.93 | GH71: 51870.93
A72: =ResultatsTècnicsEconòmics!B72 -> Carburants i lubricants | B72: =COUNTA($F72:$GI72) -> 1 | C72: 20384.14 | D72: 20384.14 | E72: 20384.14 | GH72: 20384.14
A73: =ResultatsTècnicsEconòmics!B73 -> Lloguer maquinària | B73: 1 | C73: =MIN($F73:$GI73) -> 31486.79 | D73: =MAX($F73:$GI73) -> 31486.79 | E73: =SUMIF($F73:$GI73,">0")/$B$2 -> 31486.79 | GH73: 31486.79
A74: =ResultatsTècnicsEconòmics!B74 -> Veterinari | B74: 1 | C74: 9197.84 | D74: 9197.84 | E74: 9197.84 | GH74: 9197.84
A75: =ResultatsTècnicsEconòmics!B75 -> Medicines i productes veterinaris | B75: 1 | C75: 6027.26 | D75: 6027.26 | E75: 6027.26 | GH75: 6027.26
A76: =ResultatsTècnicsEconòmics!B76 -> Jaç/llits | B76: 1 | C76: 11409.19 | D76: 11409.19 | E76: 11409.19 | GH76: 11409.19
A77: =ResultatsTècnicsEconòmics!B77 -> Material divers | B77: 1 | C77: 4224.23 | D77: 4224.23 | E77: 4224.23 | GH77: 4224.23
A78: =ResultatsTècnicsEconòmics!B78 -> Llum | B78: 1 | C78: 6959.82 | D78: 6959.82 | E78: 6959.82 | GH78: 6959.82
A79: =ResultatsTècnicsEconòmics!B79 -> Telèfon | B79: 1 | C79: 0 | D79: 0 | E79: 0 | GH79: 0
A80: =ResultatsTècnicsEconòmics!B80 -> Detergents i desinfectants | B80: 1 | C80: 3027.12 | D80: 3027.12 | E80: 3027.12 | GH80: 3027.12
A81: =ResultatsTècnicsEconòmics!B81 -> Consum aigua | B81: 1 | C81: 4489.25 | D81: 4489.25 | E81: 4489.25 | GH81: 4489.25
A82: =ResultatsTècnicsEconòmics!B82 -> Inseminacions | B82: 1 | C82: 3166.4 | D82: 3166.4 | E82: 3166.4 | GH82: 3166.4
A83: =ResultatsTècnicsEconòmics!B83 -> Sous eventuals (inclosa SS) | B83: 1 | C83: 0 | D83: 0 | E83: 0 | GH83: 0
A84: =ResultatsTècnicsEconòmics!B84 ->  | B84: 1 | C84: 0 | D84: 0 | E84: 0 | GH84: 0
A85: =ResultatsTècnicsEconòmics!B85 ->  | B85: 1 | C85: 0 | D85: 0 | E85: 0 | GH85: 0
A86: =ResultatsTècnicsEconòmics!B86 ->  | B86: 1 | C86: 0 | D86: 0 | E86: 0 | GH86: 0
A87: =ResultatsTècnicsEconòmics!B87 ->  | B87: 1 | C87: 0 | D87: 0 | E87: 0 | GH87: 0
A88: =ResultatsTècnicsEconòmics!B88 ->  | B88: 1 | C88: 0 | D88: 0 | E88: 0 | GH88: 0
A89: =ResultatsTècnicsEconòmics!B89 ->  | B89: 1 | C89: 0 | D89: 0 | E89: 0 | GH89: 0
A90: =ResultatsTècnicsEconòmics!B90 ->  | B90: 1 | C90: 0 | D90: 0 | E90: 0 | GH90: 0
A91: =ResultatsTècnicsEconòmics!B91 -> Variació inventari productes alimentaris | B91: 1 | C91: -22714.89062 | D91: -22714.89062 | E91: 0 | GH91: -22714.89062
A92: =ResultatsTècnicsEconòmics!B92 -> Costos fixos | B92: 1 | C92: 99016.34868 | D92: 99016.34868 | E92: 99016.34868 | GH92: 99016.34868
A93: =ResultatsTècnicsEconòmics!B93 -> Amortització anual maquinària | B93: 1 | C93: 0 | D93: 0 | E93: 0 | GH93: 0
A94: =ResultatsTècnicsEconòmics!B94 -> Amortització anual edificacions | B94: 1 | C94: 7874.126775 | D94: 7874.126775 | E94: 7874.126775 | GH94: 7874.126775
A95: =ResultatsTècnicsEconòmics!B95 -> Amortització instal·lacions | B95: 1 | C95: 4866.4719 | D95: 4866.4719 | E95: 4866.4719 | GH95: 4866.4719
A96: =ResultatsTècnicsEconòmics!B96 -> Coservació i reparació maquinària | B96: 1 | C96: 13569.64 | D96: 13569.64 | E96: 13569.64 | GH96: 13569.64
A97: =ResultatsTècnicsEconòmics!B97 -> Conservació i reparació edificis | B97: 1 | C97: 1992.22 | D97: 1992.22 | E97: 1992.22 | GH97: 1992.22
A98: =ResultatsTècnicsEconòmics!B98 -> Contribucions/impostos | B98: 1 | C98: 416.84 | D98: 416.84 | E98: 416.84 | GH98: 416.84
A99: =ResultatsTècnicsEconòmics!B99 -> Interessos préstecs i comissions | B99: 1 | C99: 8970.3 | D99: 8970.3 | E99: 8970.3 | GH99: 8970.3
A100: =ResultatsTècnicsEconòmics!B100 -> Assessories i serveis tècnics | B100: 1 | C100: 0 | D100: 0 | E100: 0 | GH100: 0
A101: =ResultatsTècnicsEconòmics!B101 -> Sous fixos | B101: 1 | C101: 27000 | D101: 27000 | E101: 27000 | GH101: 27000
A102: =ResultatsTècnicsEconòmics!B102 -> Seguretat social familiar | B102: 1 | C102: 8598.66 | D102: 8598.66 | E102: 8598.66 | GH102: 8598.66
A103: =ResultatsTècnicsEconòmics!B103 -> Arrendament sòl agrícola | B103: 1 | C103: 9325 | D103: 9325 | E103: 9325 | GH103: 9325
A104: =ResultatsTècnicsEconòmics!B104 -> Arrendament edificis | B104: 1 | C104: 4200 | D104: 4200 | E104: 4200 | GH104: 4200
A105: =ResultatsTècnicsEconòmics!B105 -> Altres arrendaments | B105: 1 | C105: 1260 | D105: 1260 | E105: =SUMIF($F105:$GI105,">0")/$B$2 -> 1260 | GH105: 1260
A106: =ResultatsTècnicsEconòmics!B106 -> Assegurances vaques | B106: 1 | C106: 5757.03 | D106: 5757.03 | E106: 5757.03 | GH106: 5757.03
A107: =ResultatsTècnicsEconòmics!B107 -> Assegurances maquinària | B107: 1 | C107: 775.95 | D107: 775.95 | E107: 775.95 | GH107: 775.95
A108: =ResultatsTècnicsEconòmics!B108 -> Assegurances edificis | B108: 1 | C108: 1159.72 | D108: 1159.72 | E108: 1159.72 | GH108: 1159.72
A109: =ResultatsTècnicsEconòmics!B109 -> Assegurances collites | B109: 1 | C109: 0 | D109: 0 | E109: 0 | GH109: 0
A110: =ResultatsTècnicsEconòmics!B110 -> Control lleter | B110: 1 | C110: 1378.35 | D110: 1378.35 | E110: 1378.35 | GH110: 1378.35
A111: =ResultatsTècnicsEconòmics!B111 -> Administració i gestoria | B111: 1 | C111: 1542.32 | D111: 1542.32 | E111: 1542.32 | GH111: 1542.32
A112: =ResultatsTècnicsEconòmics!B112 -> Assegurances diverses | B112: 1 | C112: 329.72 | D112: 329.72 | E112: 329.72 | GH112: 329.72
A113: =ResultatsTècnicsEconòmics!B113 ->  | B113: 1 | C113: 0 | D113: 0 | E113: 0 | GH113: 0
A114: =ResultatsTècnicsEconòmics!B114 -> Costos_Oportunitat | B114: 1 | E114: 0
A115: =ResultatsTècnicsEconòmics!B115 -> Renda de la terra | B115: 1 | C115: 12800 | D115: 12800 | E115: 12800 | GH115: 12800
A116: =ResultatsTècnicsEconòmics!B116 -> Mà d’obra familiar | B116: 1 | E116: 0
A117: =ResultatsTècnicsEconòmics!B117 -> Interès capital propi | B117: 1 | C117: 1579.74606 | D117: 1579.74606 | E117: 1579.74606 | GH117: 1579.74606
A118: =ResultatsTècnicsEconòmics!B118 -> Costos totals (sense incloure costos d'oportunitat) | B118: 1 | C118: 342116.2981 | D118: 342116.2981 | E118: 342116.2981 | GH118: 342116.2981
A119: =ResultatsTècnicsEconòmics!B119 -> Costos totals (Incloent costos d'oportunitat) | B119: 1 | E119: 0
A120: =ResultatsTècnicsEconòmics!B120 -> Marge brut | B120: 1 | C120: 167344.9445 | D120: 167344.9445 | E120: 167344.9445 | GH120: 167344.9445
A121: =ResultatsTècnicsEconòmics!B121 -> Marge net | B121: 1 | C121: 68328.59581 | D121: 68328.59581 | E121: 68328.59581 | GH121: 68328.59581
A122: =ResultatsTècnicsEconòmics!B122 -> Benefici | B122: 1 | E122: 0
A123: =ResultatsTècnicsEconòmics!B123 -> RUT (Renda Unitària del treball) | B123: 1 | C123: 34642.4186 | D123: 34642.4186 | E123: 34642.4186 | GH123: 34642.4186
A124: =ResultatsTècnicsEconòmics!B124 -> Ingressos totals | B124: 1 | C124: 0.4011420095 | D124: 0.4011420095 | E124: 0.4011420095 | GH124: 0.4011420095
A125: =ResultatsTècnicsEconòmics!B125 -> Ingressos per llet venuda | B125: 1 | C125: 0.3168052102 | D125: 0.3168052102 | E125: 0.3168052102 | GH125: 0.3168052102
A126: =ResultatsTècnicsEconòmics!B126 -> Ingressos per venda neta de vedells | B126: 1 | C126: 0.005003953319 | D126: 0.005003953319 | E126: 0.005003953319 | GH126: 0.005003953319
A127: =ResultatsTècnicsEconòmics!B127 -> Ingressos per venda neta resta animals | B127: 1 | C127: 0.01521566355 | D127: 0.01521566355 | E127: 0.01521566355 | GH127: 0.01521566355
A128: =ResultatsTècnicsEconòmics!B128 -> Venda fems | B128: 1 | C128: 0 | D128: 0 | E128: 0 | GH128: 0
A129: =ResultatsTècnicsEconòmics!B129 -> Subvencions | B129: 1 | C129: 0.06405631891 | D129: 0.06405631891 | E129: 0.06405631891 | GH129: 0.06405631891
A130: =ResultatsTècnicsEconòmics!B130 -> Indemnitzacions | B130: 1 | C130: 0 | D130: 0 | E130: 0 | GH130: 0
A131: =ResultatsTècnicsEconòmics!B131 ->  | B131: 1 | C131: 0 | D131: 0 | E131: 0 | GH131: 0
A132: =ResultatsTècnicsEconòmics!B132 ->  | B132: 1 | C132: 0 | D132: 0 | E132: 0 | GH132: 0
A133: =ResultatsTècnicsEconòmics!B133 -> Ingressos per variació de inventari animal | B133: 1 | C133: 6.086351424e-05 | D133: 6.086351424e-05 | E133: 6.086351424e-05 | GH133: 6.086351424e-05
A134: =ResultatsTècnicsEconòmics!B134 -> Costos_Variables | B134: 1 | C134: 0.2375899997 | D134: 0.2375899997 | E134: 0.2375899997 | GH134: 0.2375899997
A135: =ResultatsTècnicsEconòmics!B135 -> Productes comprats per a l'alimentació | B135: 1 | C135: 0.1493580377 | D135: 0.1493580377 | E135: 0.1493580377 | GH135: 0.1493580377
A136: =ResultatsTècnicsEconòmics!B136 -> Farratges comprats | B136: =COUNTA($F136:$GI136) -> 1 | C136: 0 | D136: 0 | E136: 0 | GH136: 0
A137: =ResultatsTècnicsEconòmics!B137 -> Concentrats | B137: 1 | C137: =MIN($F137:$GI137) -> 0.1493580377 | D137: =MAX($F137:$GI137) -> 0.1493580377 | E137: =SUMIF($F137:$GI137,">0")/$B$2 -> 0.1493580377 | GH137: 0.1493580377
A138: =ResultatsTècnicsEconòmics!B138 -> Costos parcel·les | B138: 1 | C138: 0.0123349404 | D138: 0.0123349404 | E138: 0.0123349404 | GH138: 0.0123349404
A139: =ResultatsTècnicsEconòmics!B139 -> Llavors | B139: 1 | C139: 0.00390933853 | D139: 0.00390933853 | E139: 0.00390933853 | GH139: 0.00390933853
A140: =ResultatsTècnicsEconòmics!B140 -> Adobs | B140: 1 | C140: 0.003127470824 | D140: 0.003127470824 | E140: 0.003127470824 | GH140: 0.003127470824
A141: =ResultatsTècnicsEconòmics!B141 -> Tractaments | B141: 1 | C141: 0.002052402728 | D141: 0.002052402728 | E141: 0.002052402728 | GH141: 0.002052402728
A142: =ResultatsTècnicsEconòmics!B142 -> Plàstics i conservants | B142: 1 | C142: 0.00129105905 | D142: 0.00129105905 | E142: 0.00129105905 | GH142: 0.00129105905
A143: =ResultatsTècnicsEconòmics!B143 -> Altres (aigua reg, etc.) | B143: 1 | C143: 0.001954669265 | D143: 0.001954669265 | E143: 0.001954669265 | GH143: 0.001954669265
A144: =ResultatsTècnicsEconòmics!B144 -> Maquinària | B144: 1 | C144: 0.05069525631 | D144: 0.05069525631 | E144: 0.05069525631 | GH144: 0.05069525631
A145: =ResultatsTècnicsEconòmics!B145 -> Carburants i lubricants | B145: 1 | C145: 0.01992212598 | D145: 0.01992212598 | E145: 0.01992212598 | GH145: 0.01992212598
A146: =ResultatsTècnicsEconòmics!B146 -> Lloguer maquinària | B146: 1 | C146: 0.03077313033 | D146: 0.03077313033 | E146: 0.03077313033 | GH146: 0.03077313033
A147: =ResultatsTècnicsEconòmics!B147 -> Veterinari | B147: 1 | C147: 0.008989367577 | D147: 0.008989367577 | E147: 0.008989367577 | GH147: 0.008989367577
A148: =ResultatsTècnicsEconòmics!B148 -> Medicines i productes veterinaris | B148: 1 | C148: 0.005890649937 | D148: 0.005890649937 | E148: 0.005890649937 | GH148: 0.005890649937
A149: =ResultatsTècnicsEconòmics!B149 -> Jaç/llits | B149: 1 | C149: 0.01115059652 | D149: 0.01115059652 | E149: 0.01115059652 | GH149: 0.01115059652
A150: =ResultatsTècnicsEconòmics!B150 -> Material divers | B150: 1 | C150: 0.004128486275 | D150: 0.004128486275 | E150: 0.004128486275 | GH150: 0.004128486275
A151: =ResultatsTècnicsEconòmics!B151 -> Llum | B151: 1 | C151: 0.006802073122 | D151: 0.006802073122 | E151: 0.006802073122 | GH151: 0.006802073122
A152: =ResultatsTècnicsEconòmics!B152 -> Telèfon | B152: 1 | C152: 0 | D152: 0 | E152: 0 | GH152: 0
A153: =ResultatsTècnicsEconòmics!B153 -> Detergents i desinfectants | B153: 1 | C153: 0.002958509213 | D153: 0.002958509213 | E153: 0.002958509213 | GH153: 0.002958509213
A154: =ResultatsTècnicsEconòmics!B154 -> Consum aigua | B154: 1 | C154: 0.004387499499 | D154: 0.004387499499 | E154: 0.004387499499 | GH154: 0.004387499499
A155: =ResultatsTècnicsEconòmics!B155 -> Inseminacions | B155: 1 | C155: 0.00309463238 | D155: 0.00309463238 | E155: 0.00309463238 | GH155: 0.00309463238
A156: =ResultatsTècnicsEconòmics!B156 -> Sous eventuals (inclosa SS) | B156: 1 | C156: 0 | D156: 0 | E156: 0 | GH156: 0
A157: =ResultatsTècnicsEconòmics!B157 ->  | B157: 1 | C157: 0 | D157: 0 | E157: 0 | GH157: 0
A158: =ResultatsTècnicsEconòmics!B158 ->  | B158: 1 | C158: 0 | D158: 0 | E158: 0 | GH158: 0
A159: =ResultatsTècnicsEconòmics!B159 ->  | B159: 1 | C159: 0 | D159: 0 | E159: 0 | GH159: 0
A160: =ResultatsTècnicsEconòmics!B160 ->  | B160: 1 | C160: 0 | D160: 0 | E160: 0 | GH160: 0
A161: =ResultatsTècnicsEconòmics!B161 ->  | B161: 1 | C161: 0 | D161: 0 | E161: 0 | GH161: 0
A162: =ResultatsTècnicsEconòmics!B162 ->  | B162: 1 | C162: 0 | D162: 0 | E162: 0 | GH162: 0
A163: =ResultatsTècnicsEconòmics!B163 ->  | B163: 1 | C163: 0 | D163: 0 | E163: 0 | GH163: 0
A164: =ResultatsTècnicsEconòmics!B164 -> Variació inventari productes alimentaris | B164: 1 | C164: -0.02220004927 | D164: -0.02220004927 | E164: 0 | GH164: -0.02220004927
A165: =ResultatsTècnicsEconòmics!B165 -> Costos fixos | B165: 1 | C165: 0.09677210675 | D165: 0.09677210675 | E165: 0.09677210675 | GH165: 0.09677210675
A166: =ResultatsTècnicsEconòmics!B166 -> Amortització anual maquinària | B166: 1 | C166: 0 | D166: 0 | E166: 0 | GH166: 0
A167: =ResultatsTècnicsEconòmics!B167 -> Amortització anual edificacions | B167: 1 | C167: 0.007695656798 | D167: 0.007695656798 | E167: 0.007695656798 | GH167: 0.007695656798
A168: =ResultatsTècnicsEconòmics!B168 -> Amortització instal·lacions | B168: 1 | C168: 0.004756171526 | D168: 0.004756171526 | E168: 0.004756171526 | GH168: 0.004756171526
A169: =ResultatsTècnicsEconòmics!B169 -> Coservació i reparació maquinària | B169: 1 | C169: 0.01326207912 | D169: 0.01326207912 | E169: =SUMIF($F169:$GI169,">0")/$B$2 -> 0.01326207912 | GH169: 0.01326207912
A170: =ResultatsTècnicsEconòmics!B170 -> Conservació i reparació edificis | B170: 1 | C170: 0.001947065602 | D170: 0.001947065602 | E170: 0.001947065602 | GH170: 0.001947065602
A171: =ResultatsTècnicsEconòmics!B171 -> Contribucions/impostos | B171: 1 | C171: 0.0004073921682 | D171: 0.0004073921682 | E171: 0.0004073921682 | GH171: 0.0004073921682
A172: =ResultatsTècnicsEconòmics!B172 -> Interessos préstecs i comissions | B172: 1 | C172: 0.008766984854 | D172: 0.008766984854 | E172: 0.008766984854 | GH172: 0.008766984854
A173: =ResultatsTècnicsEconòmics!B173 -> Assessories i serveis tècnics | B173: 1 | C173: 0 | D173: 0 | E173: 0 | GH173: 0
A174: =ResultatsTècnicsEconòmics!B174 -> Sous fixos | B174: 1 | C174: 0.02638803508 | D174: 0.02638803508 | E174: 0.02638803508 | GH174: 0.02638803508
A175: =ResultatsTècnicsEconòmics!B175 -> Seguretat social familiar | B175: 1 | C175: 0.008403768211 | D175: 0.008403768211 | E175: =SUM($F175:$GI175)/$B$2 -> 0.008403768211 | GH175: 0.008403768211
A176: =ResultatsTècnicsEconòmics!B176 -> Arrendament sòl agrícola | B176: 1 | C176: 0.009113645448 | D176: 0.009113645448 | E176: 0.009113645448 | GH176: 0.009113645448
A177: =ResultatsTècnicsEconòmics!B177 -> Arrendament edificis | B177: 1 | C177: 0.004104805457 | D177: 0.004104805457 | E177: 0.004104805457 | GH177: 0.004104805457
A178: =ResultatsTècnicsEconòmics!B178 -> Altres arrendaments | B178: 1 | C178: 0.001231441637 | D178: 0.001231441637 | E178: 0.001231441637 | GH178: 0.001231441637
A179: =ResultatsTècnicsEconòmics!B179 -> Assegurances vaques | B179: 1 | C179: 0.0056265448 | D179: 0.0056265448 | E179: 0.0056265448 | GH179: 0.0056265448
A180: =ResultatsTècnicsEconòmics!B180 -> Assegurances maquinària | B180: 1 | C180: 0.0007583628081 | D180: 0.0007583628081 | E180: 0.0007583628081 | GH180: 0.0007583628081
A181: =ResultatsTècnicsEconòmics!B181 -> Assegurances edificis | B181: 1 | C181: 0.00113343452 | D181: 0.00113343452 | E181: 0.00113343452 | GH181: 0.00113343452
A182: =ResultatsTècnicsEconòmics!B182 -> Assegurances collites | B182: 1 | C182: 0 | D182: 0 | E182: 0 | GH182: 0
A183: =ResultatsTècnicsEconòmics!B183 -> Control lleter | B183: 1 | C183: 0.001347109191 | D183: 0.001347109191 | E183: 0.001347109191 | GH183: 0.001347109191
A184: =ResultatsTècnicsEconòmics!B184 -> Administració i gestoria | B184: 1 | C184: 0.00150736275 | D184: 0.00150736275 | E184: 0.00150736275 | GH184: 0.00150736275
A185: =ResultatsTècnicsEconòmics!B185 -> Assegurances diverses | B185: 1 | C185: 0.000322246775 | D185: 0.000322246775 | E185: 0.000322246775 | GH185: 0.000322246775
A186: =ResultatsTècnicsEconòmics!B186 ->  | B186: 1 | C186: 0 | D186: 0 | E186: 0 | GH186: 0
A187: =ResultatsTècnicsEconòmics!B187 -> Costos_Oportunitat | B187: 1
A188: =ResultatsTècnicsEconòmics!B188 -> Renda de la terra | B188: 1 | C188: 0.0125098833 | D188: 0.0125098833 | E188: 0.0125098833 | GH188: 0.0125098833
A189: =ResultatsTècnicsEconòmics!B189 -> Mà d’obra familiar | B189: 1
A190: =ResultatsTècnicsEconòmics!B190 -> Interès capital propi | B190: 1 | C190: 0.001543940535 | D190: 0.001543940535 | E190: 0.001543940535 | GH190: 0.001543940535
A191: =ResultatsTècnicsEconòmics!B191 -> Costos totals (sense incloure costos d'oportunitat) | B191: 1 | C191: 0.3343621064 | D191: 0.3343621064 | E191: 0.3343621064 | GH191: 0.3343621064
A192: =ResultatsTècnicsEconòmics!B192 -> Costos totals (Incloent costos d'oportunitat) | B192: 1
A193: =ResultatsTècnicsEconòmics!B193 -> Marge brut | B193: 1 | C193: 0.1635520098 | D193: 0.1635520098 | E193: 0.1635520098 | GH193: 0.1635520098
A194: =ResultatsTècnicsEconòmics!B194 -> Marge net | B194: 1 | C194: 0.06677990307 | D194: 0.06677990307 | E194: 0.06677990307 | GH194: 0.06677990307
A195: =ResultatsTècnicsEconòmics!B195 -> Benefici | B195: 1
A196: =ResultatsTècnicsEconòmics!B196 -> RUT (Renda Unitària del treball) | B196: 1 | C196: 0.03385723545 | D196: 0.03385723545 | E196: 0.03385723545 | GH196: 0.03385723545
A197: =ResultatsTècnicsEconòmics!B197 -> Llindar rendibilitat MN | B197: 1 | C197: 0.2500253072 | D197: 0.2500253072 | E197: 0.2500253072 | GH197: 0.2500253072
A198: =ResultatsTècnicsEconòmics!B198 -> Llindar rendibilitat B | B198: 1
A199: =ResultatsTècnicsEconòmics!B199 -> Maquinària | B199: 1 | C199: 0 | D199: 0 | E199: 0 | GH199: Banyera Gili 12 Tm
A200: =ResultatsTècnicsEconòmics!B200 -> Maquinària | B200: =COUNTA($F200:$GI200) -> 1 | C200: 0 | D200: 0 | E200: 0 | GH200: John Deere 6820
... 93 more rows

Sheet ResultatsEconòmicsDarreraExplot
A1: Grup de Remugants "Ramon Trias"
B2: Nom o nombre explotació | C2: =ResultatsTècnicsEconòmics!C4 -> BBBB
B3: Any exercici | C3: =EntradaDadesExplotació!E17 -> 2021
B4: Has de llet | C4: =Sllet -> 75
B5: % regadiu | C5: =ResultatsTècnicsEconòmics!C13 -> 0.3333333333
B6: Nº vaques mitjana | C6: =VM -> 116
B7: % primer part | C7: =ResultatsTècnicsEconòmics!C17 -> 0.349137931
B8: UBM mitjana | C8: =UBM -> 163.5
B9: UTA totals | C9: =UTA -> 3
B10: UTA familiar | C10: =UTAf -> 2
B11: Vaques mitjana/ha | C11: =VM_ha -> 1.546666667
B12: UBM vaquí llet/ha | C12: =UBM_ha -> 2.18
B13: Consum de pinso de vaca per kg de llet | C13: =ResultatsTècnicsEconòmics!C46 -> 0.4411831464
B14: € litre llet venut | C14: =Preu -> 0.3213204428 | D14: cts d'€/litre
B15: =ResultatsTècnicsEconòmics!B124 -> Ingressos totals | C15: =ResultatsTècnicsEconòmics!C124 -> 0.4011420095 | D15: =C15*100 -> 40.11420095
B16: =ResultatsTècnicsEconòmics!B125 -> Ingressos per llet venuda | C16: =ResultatsTècnicsEconòmics!C125 -> 0.3168052102 | D16: =C16*100 -> 31.68052102
B17: =ResultatsTècnicsEconòmics!B126 -> Ingressos per venda neta de vedells | C17: =ResultatsTècnicsEconòmics!C126 -> 0.005003953319 | D17: 0.5003953319
B18: =ResultatsTècnicsEconòmics!B127 -> Ingressos per venda neta resta animals | C18: =ResultatsTècnicsEconòmics!C127 -> 0.01521566355 | D18: 1.521566355
B19: =ResultatsTècnicsEconòmics!B128 -> Venda fems | C19: =ResultatsTècnicsEconòmics!C128 -> 0 | D19: 0
B20: =ResultatsTècnicsEconòmics!B129 -> Subvencions | C20: =ResultatsTècnicsEconòmics!C129 -> 0.06405631891 | D20: 6.405631891
B21: =ResultatsTècnicsEconòmics!B130 -> Indemnitzacions | C21: =ResultatsTècnicsEconòmics!C130 -> 0 | D21: 0
B22: =ResultatsTècnicsEconòmics!B131 ->  | C22: =ResultatsTècnicsEconòmics!C131 -> 0 | D22: 0
B23: =ResultatsTècnicsEconòmics!B132 ->  | C23: =ResultatsTècnicsEconòmics!C132 -> 0 | D23: 0
B24: =ResultatsTècnicsEconòmics!B133 -> Ingressos per variació de inventari animal | C24: =ResultatsTècnicsEconòmics!C133 -> 6.086351424e-05 | D24: 0.006086351424
B25: =ResultatsTècnicsEconòmics!B134 -> Costos_Variables | C25: =ResultatsTècnicsEconòmics!C134 -> 0.2375899997 | D25: 23.75899997
B26: =ResultatsTècnicsEconòmics!B135 -> Productes comprats per a l'alimentació | C26: =ResultatsTècnicsEconòmics!C135 -> 0.1493580377 | D26: 14.93580377
B27: =ResultatsTècnicsEconòmics!B136 -> Farratges comprats | C27: =ResultatsTècnicsEconòmics!C136 -> 0 | D27: 0
B28: =ResultatsTècnicsEconòmics!B137 -> Concentrats | C28: =ResultatsTècnicsEconòmics!C137 -> 0.1493580377 | D28: 14.93580377
B29: =ResultatsTècnicsEconòmics!B138 -> Costos parcel·les | C29: =ResultatsTècnicsEconòmics!C138 -> 0.0123349404 | D29: 1.23349404
B30: =ResultatsTècnicsEconòmics!B139 -> Llavors | C30: =ResultatsTècnicsEconòmics!C139 -> 0.00390933853 | D30: 0.390933853
B31: =ResultatsTècnicsEconòmics!B140 -> Adobs | C31: =ResultatsTècnicsEconòmics!C140 -> 0.003127470824 | D31: 0.3127470824
B32: =ResultatsTècnicsEconòmics!B141 -> Tractaments | C32: =ResultatsTècnicsEconòmics!C141 -> 0.002052402728 | D32: 0.2052402728
B33: =ResultatsTècnicsEconòmics!B142 -> Plàstics i conservants | C33: =ResultatsTècnicsEconòmics!C142 -> 0.00129105905 | D33: 0.129105905
B34: =ResultatsTècnicsEconòmics!B143 -> Altres (aigua reg, etc.) | C34: =ResultatsTècnicsEconòmics!C143 -> 0.001954669265 | D34: 0.1954669265
B35: =ResultatsTècnicsEconòmics!B144 -> Maquinària | C35: =ResultatsTècnicsEconòmics!C144 -> 0.05069525631 | D35: 5.069525631
B36: =ResultatsTècnicsEconòmics!B145 -> Carburants i lubricants | C36: =ResultatsTècnicsEconòmics!C145 -> 0.01992212598 | D36: 1.992212598
B37: =ResultatsTècnicsEconòmics!B146 -> Lloguer maquinària | C37: =ResultatsTècnicsEconòmics!C146 -> 0.03077313033 | D37: 3.077313033
B38: =ResultatsTècnicsEconòmics!B147 -> Veterinari | C38: =ResultatsTècnicsEconòmics!C147 -> 0.008989367577 | D38: 0.8989367577
B39: =ResultatsTècnicsEconòmics!B148 -> Medicines i productes veterinaris | C39: =ResultatsTècnicsEconòmics!C148 -> 0.005890649937 | D39: 0.5890649937
B40: =ResultatsTècnicsEconòmics!B149 -> Jaç/llits | C40: =ResultatsTècnicsEconòmics!C149 -> 0.01115059652 | D40: 1.115059652
B41: =ResultatsTècnicsEconòmics!B150 -> Material divers | C41: =ResultatsTècnicsEconòmics!C150 -> 0.004128486275 | D41: 0.4128486275
B42: =ResultatsTècnicsEconòmics!B151 -> Llum | C42: =ResultatsTècnicsEconòmics!C151 -> 0.006802073122 | D42: 0.6802073122
B43: =ResultatsTècnicsEconòmics!B152 -> Telèfon | C43: =ResultatsTècnicsEconòmics!C152 -> 0 | D43: 0
B44: =ResultatsTècnicsEconòmics!B153 -> Detergents i desinfectants | C44: =ResultatsTècnicsEconòmics!C153 -> 0.002958509213 | D44: 0.2958509213
B45: =ResultatsTècnicsEconòmics!B154 -> Consum aigua | C45: =ResultatsTècnicsEconòmics!C154 -> 0.004387499499 | D45: 0.4387499499
B46: =ResultatsTècnicsEconòmics!B155 -> Inseminacions | C46: =ResultatsTècnicsEconòmics!C155 -> 0.00309463238 | D46: 0.309463238
B47: =ResultatsTècnicsEconòmics!B156 -> Sous eventuals (inclosa SS) | C47: =ResultatsTècnicsEconòmics!C156 -> 0 | D47: 0
B48: =ResultatsTècnicsEconòmics!B157 ->  | C48: =ResultatsTècnicsEconòmics!C157 -> 0 | D48: 0
B49: =ResultatsTècnicsEconòmics!B158 ->  | C49: =ResultatsTècnicsEconòmics!C158 -> 0 | D49: 0
B50: =ResultatsTècnicsEconòmics!B159 ->  | C50: =ResultatsTècnicsEconòmics!C159 -> 0 | D50: 0
B51: =ResultatsTècnicsEconòmics!B160 ->  | C51: =ResultatsTècnicsEconòmics!C160 -> 0 | D51: 0
B52: =ResultatsTècnicsEconòmics!B161 ->  | C52: =ResultatsTècnicsEconòmics!C161 -> 0 | D52: 0
B53: =ResultatsTècnicsEconòmics!B162 ->  | C53: =ResultatsTècnicsEconòmics!C162 -> 0 | D53: 0
B54: =ResultatsTècnicsEconòmics!B163 ->  | C54: =ResultatsTècnicsEconòmics!C163 -> 0 | D54: 0
B55: =ResultatsTècnicsEconòmics!B164 -> Variació inventari productes alimentaris | C55: =ResultatsTècnicsEconòmics!C164 -> -0.02220004927 | D55: -2.220004927
B56: =ResultatsTècnicsEconòmics!B165 -> Costos fixos | C56: =ResultatsTècnicsEconòmics!C165 -> 0.1073576188 | D56: 10.73576188
B57: =ResultatsTècnicsEconòmics!B166 -> Amortització anual maquinària | C57: =ResultatsTècnicsEconòmics!C166 -> 0.005277607016 | D57: 0.5277607016
B58: =ResultatsTècnicsEconòmics!B167 -> Amortització anual edificacions | C58: =ResultatsTècnicsEconòmics!C167 -> 0.01176376397 | D58: =C58*100 -> 1.176376397
B59: =ResultatsTècnicsEconòmics!B168 -> Amortització instal·lacions | C59: =ResultatsTècnicsEconòmics!C168 -> 0.005995969374 | D59: 0.5995969374
B60: =ResultatsTècnicsEconòmics!B169 -> Coservació i reparació maquinària | C60: =ResultatsTècnicsEconòmics!C169 -> 0.01326207912 | D60: 1.326207912
B61: =ResultatsTècnicsEconòmics!B170 -> Conservació i reparació edificis | C61: =ResultatsTècnicsEconòmics!C170 -> 0.001947065602 | D61: =C61*100 -> 0.1947065602
B62: =ResultatsTècnicsEconòmics!B171 -> Contribucions/impostos | C62: =ResultatsTècnicsEconòmics!C171 -> 0.0004073921682 | D62: 0.04073921682
B63: =ResultatsTècnicsEconòmics!B172 -> Interessos préstecs i comissions | C63: =ResultatsTècnicsEconòmics!C172 -> 0.008766984854 | D63: 0.8766984854
B64: =ResultatsTècnicsEconòmics!B173 -> Assessories i serveis tècnics | C64: =ResultatsTècnicsEconòmics!C173 -> 0 | D64: =C64*100 -> 0
B65: =ResultatsTècnicsEconòmics!B174 -> Sous fixos | C65: =ResultatsTècnicsEconòmics!C174 -> 0.02638803508 | D65: 2.638803508
B66: =ResultatsTècnicsEconòmics!B175 -> Seguretat social familiar | C66: =ResultatsTècnicsEconòmics!C175 -> 0.008403768211 | D66: 0.8403768211
B67: =ResultatsTècnicsEconòmics!B176 -> Arrendament sòl agrícola | C67: =ResultatsTècnicsEconòmics!C176 -> 0.009113645448 | D67: 0.9113645448
B68: =ResultatsTècnicsEconòmics!B177 -> Arrendament edificis | C68: =ResultatsTècnicsEconòmics!C177 -> 0.004104805457 | D68: 0.4104805457
B69: =ResultatsTècnicsEconòmics!B178 -> Altres arrendaments | C69: =ResultatsTècnicsEconòmics!C178 -> 0.001231441637 | D69: 0.1231441637
B70: =ResultatsTècnicsEconòmics!B179 -> Assegurances vaques | C70: =ResultatsTècnicsEconòmics!C179 -> 0.0056265448 | D70: 0.56265448
B71: =ResultatsTècnicsEconòmics!B180 -> Assegurances maquinària | C71: =ResultatsTècnicsEconòmics!C180 -> 0.0007583628081 | D71: 0.07583628081
B72: =ResultatsTècnicsEconòmics!B181 -> Assegurances edificis | C72: =ResultatsTècnicsEconòmics!C181 -> 0.00113343452 | D72: =C72*100 -> 0.113343452
B73: =ResultatsTècnicsEconòmics!B182 -> Assegurances collites | C73: =ResultatsTècnicsEconòmics!C182 -> 0 | D73: 0
B74: =ResultatsTècnicsEconòmics!B183 -> Control lleter | C74: =ResultatsTècnicsEconòmics!C183 -> 0.001347109191 | D74: 0.1347109191
B75: =ResultatsTècnicsEconòmics!B184 -> Administració i gestoria | C75: =ResultatsTècnicsEconòmics!C184 -> 0.00150736275 | D75: 0.150736275
B76: =ResultatsTècnicsEconòmics!B185 -> Assegurances diverses | C76: =ResultatsTècnicsEconòmics!C185 -> 0.000322246775 | D76: 0.0322246775
B77: =ResultatsTècnicsEconòmics!B186 ->  | C77: =ResultatsTècnicsEconòmics!C186 -> 0 | D77: 0
B78: =ResultatsTècnicsEconòmics!B187 -> Costos_Oportunitat | C78: =ResultatsTècnicsEconòmics!C187 -> 0.07571616997 | D78: 7.571616997
B79: =ResultatsTècnicsEconòmics!B188 -> Renda de la terra | C79: =ResultatsTècnicsEconòmics!C188 -> 0.0125098833 | D79: 1.25098833
B80: =ResultatsTècnicsEconòmics!B189 -> Mà d’obra familiar | C80: =ResultatsTècnicsEconòmics!C189 -> 0.06157599119 | D80: 6.157599119
B81: =ResultatsTècnicsEconòmics!B190 -> Interès capital propi | C81: =ResultatsTècnicsEconòmics!C190 -> 0.001630295485 | D81: 0.1630295485
B82: =ResultatsTècnicsEconòmics!B191 -> Costos totals (sense incloure costos d'oportunitat) | C82: =ResultatsTècnicsEconòmics!C191 -> 0.3449476185 | D82: 34.49476185
B83: =ResultatsTècnicsEconòmics!B192 -> Costos totals (Incloent costos d'oportunitat) | C83: =ResultatsTècnicsEconòmics!C192 -> 0.4206637885 | D83: 42.06637885
B84: =ResultatsTècnicsEconòmics!B193 -> Marge brut | C84: =ResultatsTècnicsEconòmics!C193 -> 0.1635520098 | D84: 16.35520098
B85: =ResultatsTècnicsEconòmics!B194 -> Marge net | C85: =ResultatsTècnicsEconòmics!C194 -> 0.05619439103 | D85: 5.619439103
B86: =ResultatsTècnicsEconòmics!B195 -> Benefici | C86: =ResultatsTècnicsEconòmics!C195 -> -0.01952177894 | D86: -1.952177894
B87: =ResultatsTècnicsEconòmics!B196 -> RUT (Renda Unitària del treball) | C87: =ResultatsTècnicsEconòmics!C196 -> 0.03032873144 | D87: 3.032873144
B88: =ResultatsTècnicsEconòmics!B197 -> Llindar rendibilitat MN | C88: =ResultatsTècnicsEconòmics!C197 -> 0.2606108192 | D88: =C88*100 -> 26.06108192
B89: =ResultatsTècnicsEconòmics!B198 -> Llindar rendibilitat B | C89: =ResultatsTècnicsEconòmics!C198 -> 0.3363269892 | D89: 33.63269892

Sheet Criteris
A2: Leche Terneros
A3: Lec_Mam | B3: 6.5 | D3: Litros/dia de leche tomada por los terneros
A4: Dias_Mam | B4: 56 | D4: Dias que estan mamando los terneros
A6: Leche Homogeneizada
A7: tgr | B7: 3.8 | D7: % en grasa de referencia UE
A9: M.O.
A10: Hores_UTA | B10: 1920
A11: Preu_h_f | B11: =RendaR/Hores_UTA -> 16.40729167 | D11: € MO Familiar
A14: Amortizaciones
A15: AA_Edif | B15: 20 | D15: Años de amortizacion de los edificios
A16: AA_Maq | B16: 10 | D16: Años de amortizacion de la maquinaria
A17: AA_Frio | B17: 10 | D17: Años de amortizacion del equipo de frio
A18: AA_Cuota | B18: 10 | D18: Años de amortizacion de compra de cuota | N18: Para el cálculo de tu hipoteca te interesa la Media Mensual:
A19: A_Enc | B19: =EntradaDadesExplotació!E17 -> 2021 | D19: Año realizacion encuesta | N19: Euribor a un año (Media Mensual), en %: | U19: Gráfico de evolución del Euribor Mensual:
A20: A_Edif | B20: =A_Enc-AA_Edif -> 2001 | D20: Año final de amortizacion de edificio | O20: =EntradaDadesExplotació!E17 -> 2021
A21: A_Maq | B21: =A_Enc-AA_Maq -> 2011 | D21: Año final de amortizacion de maquinaria
A22: A_Frio | B22: =A_Enc-AA_Frio -> 2011 | D22: Año final de amortizacion de equipo de frio | N22: Enero | O22: -0.00505
N23: Febrero | O23: -0.00501
A24: Precios de Ganado | N24: Marzo | O24: -0.00487
A25: Preu vedella prenyada | B25: =EntradaDadesExplotació!E21 -> 1457.5 | N25: Abril | O25: -0.00484
A26: Preu vaca primer | B26: =EntradaDadesExplotació!E22 -> 1325 | N26: Mayo | O26: -0.00481
N27: Junio | O27: -0.00484
N28: Julio | O28: -0.00491
N29: Agosto | O29: -0.00498
N30: Septiembre | O30: -0.00492
N31: Octubre | O31: -0.00477
A32: Tipo de Interes | N32: Noviembre | O32: -0.00487
N33: Diciembre | O33: -0.00502
A34: Int_Cap_Cir | B34: =EntradaDadesExplotació!E20 -> 0.005393333333 | N34: Mitjana | O34: =AVERAGE(O22:O33) -> -0.0049075
A35: Int_Cuo | B35: =EntradaDadesExplotació!E20 -> 0.005393333333
A36: Int_Maq | B36: =EntradaDadesExplotació!E20 -> 0.005393333333 | N36: http://www.euribordiario.es/
A37: Int_Edif | B37: =EntradaDadesExplotació!E19 -> 0.005393333333
A38: Int_Frio | B38: =EntradaDadesExplotació!E20 -> 0.005393333333
A39: Int_Gan | B39: =EntradaDadesExplotació!E20 -> 0.005393333333
N40: Toros, vaques i altres animals de l'espècie bovina de més de dos anys i equins de més de sis mesos: 1,0 UBM
A41: Sistema neteja | N41: Animals de l'espècie bovina de sis mesos a dos anys: 0,6 UBM
A42: Pala | N42: Animals de l'espècie bovina de menys de sis mesos: 0,4 UBM
A43: Tiràs
A44: Aigua
A45: Eslats
A46: Altres
A47: Tipus estabulació
A48: Travada
A49: Lliure_cubicles
A50: Lliure_clàssica
A51: Abeuradors
A52: Pica_classica
A53: Pica_boia
A54: Reversible
A55: Caçoleta
A56: Munyida
A57: Directe
A58: Paral_Girona
A59: Espina_peix
A60: Espina_ràpida
A61: Paral_ràpida
A62: Rotativa
A63: Línia de llet
A64: Baixa
A65: Alta
A66: Mitjana
A67: Polsador
A68: Neumàtic
A69: Electrònic
A70: Succió/Massatge
A71: 50_50
A72: 60_40
A73: 70_30
A74: Retiradors munyidores
A75: Si
A76: No
A77: Pressió munyida
A78: 42-44 kpa
A79: > 44 kpa
A80: Nombre de munyidors
A81: un
A82: dos
A83: tres
A84: > 3
A85: Temps d'una munyida
A86: < = 90 minuts
A87: > 90 minuts
A88: Injecta oxitocina
A89: No
A90: Puntualment
A91: < 50%
A92: > 50%
A93: Grau neteja instl·lacions munyir
A94: Bo
A95: Regular
A96: Deficient
A97: Grau neteja braguers vaques
A98: Bo
A99: Regular
A100: Deficient
A101: Freqüència control gestació
A102: No
A103: 1 per mes
A104: 2 per mes
A105: 3 per mes
A106: indeterminat
A107: Primera causa reposició
A108: Infertilitat
A109: producció
A110: punts
A111: braguers_mamitis
A112: edat
A113: potes
A114: Segona causa reposició
A115: Infertilitat
A116: producció
A117: punts
A118: braguers_mamitis
A119: edat
A120: potes
A121: Primera causa elecció
A122: No ho sap
A123: producció
A124: braguers_mamitis
A125: punts
A126: producció_sòlids
A127: per programa
A128: Segona causa elecció
A129: No ho sap
A130: producció
A131: braguers_mamitis
A132: punts
A133: producció_sòlids
A134: per programa
A135: Primer tipo semen elegit
A136: americà
A137: canadenc
A138: país
A139: no provat
A140: francès
A141: alemany
A142: italià
A143: holandès
A144: altres
A145: no insemina
A146: Segon tipus semen elegit
A147: americà
A148: canadenc
A149: país
A150: no provat
A151: francès
A152: alemany
A153: italià
A154: holandès
A155: altres
A156: carn
A157: Primer problema maneig
A158: mamitis
A159: retencions placenta
A160: torsions
A161: infertilitat
A162: coixeses
A163: febres de la llet
A164: altres
A165: no indica
A166: Valoració primer problema maneig
A167: no valora
A168: preocupa
A169: normal
A170: Segon problema maneig
A171: mamitis
A172: retencions placenta
A173: torsions
A174: infertilitat
A175: coixeses
A176: febres de la llet
A177: altres
A178: no indica
A179: Valoració segon problema maneig
A180: no valora
A181: preocupa
A182: normal
A183: Quin problema no té
A184: mamitis
A185: retencions placenta
A186: torsions
A187: infertilitat
A188: coixeses
A189: febres de la llet
A190: altres
A191: no indica
A192: Lots lactació
A193: No
A194: dos
A195: tres
A196: > tres
A197: Alçada rastell alim
A198: suficient
A199: insuficient
A200: Ventiladors
A201: Sí
A202: No
A203: Difusors aigua
A204: Sí
A205: No
... 54 more rows
